Cogmind - Beta 12 X4 @@@ ROGUE MODE // 2022.12.17 @ 10:33:09 Player: aperiodic Result: Heading to fleet! Performance ------------- Evolutions (9) 4500 Regions Visited (37) 7400 Robots Destroyed (717) 3585 Value Destroyed (34620) 34620 Prototype IDs (155) 3100 Alien Tech Used (11) 2200 Bonus (19826) 19826 TOTAL SCORE: 75231 Bonus ------- High Alert Combat Kills 6242 Follower Combat Kills 3690 Entered Garrisons 1200 Used RIF Installer 3500 Network Hubs Disabled 400 Aligned with FarCom 300 Met Zhirov 300 A7 Reached Mainframe 300 Met R17 at Cetus 500 Used Core Reset Matrix 3000 Hacked Protovariant 500 Scanned by Researcher 500 Pursued by Intercept 500 Win 3000 Friendly Fire -4106 Cogmind --------- Core Integrity 535/1600 Matter 272/300 Energy 1377/1390 System Corruption 24% Temperature Cool (8) Movement Walking (115) Location To Fleet Rendezvous Parts ------- > --- POWER (2) -------- Light Quantum Reactor > --- PROPULSION (5) --- Biometal Leg Biometal Leg Biometal Leg Myomer-HC Exoskeleton > --- UTILITY (15) ----- Huge Storage Unit Energy Well Experimental Energy Well Spectral Analyzer Advanced Targeting Computer Experimental Targeting Computer Graphene Brace > --- WEAPON (4) ------- Heavy Machine Gun KE Penetrator Railgun > --- INVENTORY (25) --- Biometal Leg Advanced Energy Well (500) Experimental Energy Well (600) YI-UF0's Bottomless Matter Pit (1103) Experimental ECM Suite Experimental Thermal Shield Supersonic Drone Bay (1/1) Subatomic Replicator Terrabomb Microwarp Drive Improved Potential Cannon KE Penetrator KE Penetrator Compact Tesla Bomb Launcher Gamma Bomb Array Hellfire Missile Launcher ME-RLN's Wand Ionic Axe Peak State ------------ > --- POWER ------------ Particle-Quantum Reactor > --- PROPULSION ------- Myomer-HC Exoskeleton > --- UTILITY ---------- Armored Scrap Engine Experimental Coolant Injector Huge Storage Unit Experimental Energy Well Spectral Analyzer Experimental Targeting Computer Experimental Utility Shielding Experimental Focal Shield Advanced Force Field System Mapper Ghost Barrier Relay Coupler [Behemoth] > --- WEAPON ----------- Null Cannon High-powered Charged HERF Construct/C High-powered Directed Potential Construct/G High-powered Thermal Phase Construct/G > --- INVENTORY -------- Experimental Heat Sink Advanced Energy Well Experimental Energy Well YI-UF0's Bottomless Matter Pit Seismic Detector Advanced Transmission Jammer Experimental ECM Suite Experimental Phase Shifter Graphene Brace Experimental Thermal Shield Advanced EM Disruption Field Supersonic Drone Bay Dimensional Node Initializer Transdimensional Reconstructor High-powered Transdimensional Reconstructor High-powered Transdimensional Reconstructor Subatomic Replicator Terrabomb Improved Potential Cannon Hypervelocity Multirail Compact Tesla Bomb Launcher Gamma Bomb Array Hellfire Missile Launcher ME-RLN's Wand [Rating: 223] Favorites ----------- Power Constructs Engine Light Ion Engine Power Core Reinforced Fission Core Reactor Constructs Propulsion Constructs Treads Light Treads Leg Constructs Wheel Armored Wheel Utility Huge Storage Unit Device Armored Scrap Engine Storage Huge Storage Unit Processor Experimental Targeting Computer Hackware System Mapper Protection Hardened Medium Armor Plating Artifact Microwarp Drive Weapon Constructs Energy Gun Constructs Energy Cannon Constructs Ballistic Gun Improved Assault Rifle Ballistic Cannon Improved Light Cannon Launcher Long-range Missile Launcher Special Weapon ME-RLN's Wand Impact Weapon Gravity Flail Slashing Weapon Ionic Axe Piercing Weapon Heavy Pick Build | -11 -10 -10 -9 -9 -9 -8 -8 -8 -8 -8 -7 -7 -7 -7 -7 -6 -6 -6 -6 -6 -6 -6 -6 -5 -5 -4 -4 -4 -4 -3 -3 -3 -2 -2 -2 -2 -1 ------- Run | Scr Mat Min Mat Min Exi Min Mat Gar Mat Gar Fac Was Fac Sto Gar Fac Was Fac Gar Ext Cet Arc Hub Fac Gar Fac Upp Upp Zhi Pro Res Qua Res Tes Sec Gar Acc Slots Evolved 18 | . . . 2 . . . 2 . . . 2 . . . . 2 . . . . . . . 2 . 2 . . . . 2 . 2 . . . 2 Power 1 | . . . . . . . . . . . . . . . . . . . . . . . . . . 1 . . . . . . . . . . . Propulsion 3 | . . . 1 . . . . . . . . . . . . 1 . . . . . . . 1 . . . . . . . . . . . . . Utility 13 | . . . 1 . . . 1 . . . 2 . . . . 1 . . . . . . . 1 . 1 . . . . 2 . 2 . . . 2 Weapon 1 | . . . . . . . 1 . . . . . . . . . . . . . . . . . . . . . . . . . . . . . . Parts Attached 812 | 6 19 12 44 2 26 12 21 15 14 29 11 2 14 16 18 10 7 13 17 16 10 8 47 20 22 20 13 1 6 14 62 47 53 73 36 15 41 Power 25 | 1 2 . 4 . 2 . 1 . . . 2 1 . 3 1 . 1 . . . . . . . . . . . 1 . . . . . . 1 5 Engine 9 | 1 2 . 4 . . . . . . . 1 . . 1 . . . . . . . . . . . . . . . . . . . . . . . Core 7 | . . . . . 1 . 1 . . . 1 . . 2 1 . . . . . . . . . . . . . 1 . . . . . . . . Reactor 9 | . . . . . 1 . . . . . . 1 . . . . 1 . . . . . . . . . . . . . . . . . . 1 5 Propulsion 57 | 2 2 . 14 . 8 1 1 . 6 3 4 1 2 3 3 2 1 . . . . . . . . . . . . . . . . . . . 4 Treads 16 | . 2 . 8 . 3 . . . . . . 1 . 1 . . 1 . . . . . . . . . . . . . . . . . . . . Leg 10 | . . . . . . . . . . 3 1 . . 1 . 1 . . . . . . . . . . . . . . . . . . . . 4 Wheel 31 | 2 . . 6 . 5 1 1 . 6 . 3 . 2 1 3 1 . . . . . . . . . . . . . . . . . . . . . Hover . | . . . . . . . . . . . . . . . . . . . . . . . . . . . . . . . . . . . . . . Flight . | . . . . . . . . . . . . . . . . . . . . . . . . . . . . . . . . . . . . . . Utility 408 | 1 4 4 9 1 6 6 5 2 3 10 3 . 6 4 2 3 4 8 9 6 7 7 36 15 11 10 9 1 4 9 36 27 42 54 21 5 18 Device 258 | . . 1 1 . 1 2 1 1 . 4 1 . 5 4 . . 1 5 6 1 1 6 26 8 5 6 7 1 1 7 29 22 36 44 17 1 7 Storage 32 | 1 2 1 . . 2 2 1 . . . . . . . . 1 . . . . . . 1 1 . 2 1 . 2 1 1 . 1 7 2 1 2 Processor 10 | . . . . . . 1 . . . . . . . . . . . . 1 . . . 1 1 . . . . . . 1 . 1 . . . 4 Hackware 30 | . . . . . . . . . 1 2 1 . 1 . 2 1 1 . . 1 1 . 1 2 5 1 1 . . . 4 2 1 2 . . . Protection 71 | . 2 2 8 1 3 1 3 1 2 4 1 . . . . 1 2 3 2 4 5 1 7 3 1 1 . . 1 1 1 3 3 1 . 3 . Artifact 7 | . . . . . . . . . . . . . . . . . . . . . . . . . . . . . . . . . . . 2 . 5 Weapon 322 | 2 11 8 17 1 10 5 14 13 5 16 2 . 6 6 12 5 1 5 8 10 3 1 11 5 11 10 4 . 1 5 26 20 11 19 15 9 14 Energy Gun 27 | 1 1 . . . . . 3 . . . . . . 1 1 . . 1 2 1 2 . . 3 4 4 1 . . . . 2 . . . . . Energy Cannon 26 | . 6 1 . . 1 . . . . . . . . 1 . 1 . 1 . . . . 2 1 . 1 2 . . 2 . 1 . 3 . 1 2 Ballistic Gun 87 | 1 1 4 6 1 7 3 7 8 3 10 1 . . . 2 2 . . . . . . 2 . . . . . . 1 1 3 1 2 6 5 10 Ballistic Cannon 5 | . . . 5 . . . . . . . . . . . . . . . . . . . . . . . . . . . . . . . . . . Launcher 53 | . 1 2 2 . 2 1 4 5 2 3 . . 3 . 5 2 . 2 . . . . . 1 3 2 . . . . 1 2 3 2 1 2 2 Special Weapon 74 | . 2 1 1 . . 1 . . . 3 1 . 3 3 4 . 1 . 2 4 . 1 4 . 4 3 1 . 1 2 15 7 4 4 1 1 . Impact Weapon 15 | . . . . . . . . . . . . . . 1 . . . . . . . . . . . . . . . . . . 2 8 4 . . Slashing Weapon 34 | . . . 3 . . . . . . . . . . . . . . 1 3 5 1 . 3 . . . . . . . 9 5 1 . 3 . . Piercing Weapon 1 | . . . . . . . . . . . . . . . . . . . 1 . . . . . . . . . . . . . . . . . . Special Melee Weapon . | . . . . . . . . . . . . . . . . . . . . . . . . . . . . . . . . . . . . . . Unidentified Prototypes 58 | . . 3 1 . 2 4 4 . 1 . 1 . . 3 . 1 . . . . 2 . 7 . . 3 2 . 4 . 5 2 2 7 3 . 1 Corrupted Parts 4 | . . 2 . . . . . . . . . . . . 1 . . . . . . . . . . . . . . . . . . . . 1 . System Corruption 22 | . . 11 . . . . . . . . . . . . 1 . . . . . . . . . . . . . . . . . . . . 10 . Parts Lost 107 | . 3 . . . 8 . . . 2 3 . . 1 2 5 5 . 7 1 . . . 2 . 1 11 . . . . 6 5 3 6 7 5 24 Power 23 | . 2 . . . 1 . . . . . . . . 1 1 1 . 2 . . . . . . 1 2 . . . . 2 1 . 1 3 1 4 Propulsion 16 | . 1 . . . 3 . . . 2 2 . . . 1 2 . . . . . . . . . . 1 . . . . . . . . . 1 3 Utility 37 | . . . . . 2 . . . . 1 . . 1 . . 1 . 3 1 . . . 1 . . 5 . . . . 1 1 2 2 4 2 10 Weapon 31 | . . . . . 2 . . . . . . . . . 2 3 . 2 . . . . 1 . . 3 . . . . 3 3 1 3 . 1 7 Highest Loss Streak 19 | . 3 . . . 5 . . . 1 2 . . 1 1 2 3 . 3 1 . . . 1 . 1 7 . . . . 2 2 1 3 3 2 19 To Critical Strikes 10 | . . . . . 5 . . . . . . . . . . . . 1 . . . . . . . . . . . . . . . 1 . . 3 Average Slot Usage (%) 73 | . 99 100 95 100 96 98 98 99 98 85 78 79 75 72 71 62 64 55 65 65 66 65 59 58 62 59 51 55 57 62 70 67 65 71 66 60 65 Engine 1 | . 13 14 11 11 4 . . . . . 2 3 . . . . . . . . . . . . 3 3 . . . . . . . . . . . Core 1 | . . . . . 3 . 2 9 9 9 4 . . 4 6 1 . 2 6 6 1 . . . . . . . . . . . . . . . . Reactor 2 | . . . . . 1 11 6 . . . . 3 7 2 . . 4 1 . . 4 6 6 5 1 . 5 5 5 5 3 4 4 4 3 3 5 Treads 4 | . 22 28 17 . 11 . . . . . . 4 4 1 . . 3 3 . 1 6 6 6 2 . . . . . . . 4 3 1 3 . . Leg 1 | . . . . . . . . . . 1 8 . . 2 5 3 2 2 6 4 . . . 2 5 5 . . . . . . . 2 . 4 6 Wheel 5 | . 5 . 11 33 20 33 27 27 26 11 13 13 9 8 8 4 . . . . . . . . . . . . . . . . . . . . . Device 10 | . . . . . . 5 1 9 5 2 15 7 15 14 12 6 6 8 14 13 7 8 10 21 9 7 18 20 16 16 14 10 15 19 23 12 6 Storage 7 | . 14 14 11 11 11 9 9 9 9 9 7 7 7 7 7 6 6 6 6 6 6 6 6 5 5 7 5 5 5 5 4 4 4 7 5 6 7 Processor 4 | . . . . . . 11 9 9 9 7 . . . . . . . . 1 . . . . 5 5 5 5 5 5 5 9 9 7 8 8 8 12 Hackware 9 | . . . . . . . . . 3 7 7 15 12 15 17 25 19 11 6 12 19 20 10 . 12 18 8 10 10 9 16 15 11 9 8 8 4 Protection 6 | . 13 14 21 22 22 5 15 8 9 9 6 7 1 . . . 5 4 5 5 5 4 5 4 4 1 . . 2 3 . 2 4 2 . 2 6 Energy Gun 1 | . 3 . . . . . 7 11 . . . . . . . 5 . 2 3 . 1 . . 1 3 1 . . . . . 3 1 4 2 4 1 Energy Cannon 2 | . 17 9 . . 1 . . . . . 1 7 7 6 6 . . 2 5 4 6 6 5 . 2 . . . . . . . . . . 2 . Ballistic Gun 6 | . 3 17 13 22 19 21 18 14 26 24 7 . . . . 6 6 3 . . . . . . . . 1 5 5 1 2 . 2 . 2 . 10 Ballistic Cannon 1 | . . . 8 . . . . . . . . . . . . . . . . 1 . . . 5 2 4 . . . 4 5 5 3 4 4 . . Special Weapon 1 | . 3 1 . . . . . . . 2 . 7 5 6 2 . 5 . . . . 5 1 . . . 1 . 2 6 3 . . . . . . Naked Turns . | . . . . . . . . . . . . . . . . . . . . . . . . . . . . . . . . . . . . . . Heaviest Build 177 | 12 54 54 71 68 80 72 128 123 122 132 127 118 129 124 110 99 112 113 114 124 120 106 147 128 127 134 127 109 109 139 150 168 164 164 146 151 177 Greatest Support 332 | 26 40 40 60 36 60 36 40 40 48 42 36 70 70 38 40 40 64 87 87 107 117 117 117 146 146 146 128 52 66 66 232 267 267 299 332 309 274 Greatest Overweight (x) 34 | . 1 1 5 1 6 1 3 3 3 8 7 3 4 3 3 7 3 1 1 1 1 34 1 1 . 1 2 2 2 2 2 . . . . . . Average Overweight (x) 1 | . . 1 . 1 1 1 2 2 2 6 4 1 1 2 2 2 1 . 1 . . . . . . . 1 2 1 1 . . . . . . . Largest Inventory Capacity 25 | 8 20 20 20 20 20 20 25 25 25 25 25 25 25 25 25 25 25 25 25 25 25 25 25 25 25 25 25 25 25 25 25 25 25 25 25 25 25 Average Capacity 23 | 7 19 20 20 20 16 18 21 25 25 25 25 25 25 25 25 25 25 25 25 25 25 25 25 25 25 25 25 25 25 25 25 25 25 25 25 25 25 Most Carried 25 | 4 16 20 20 20 20 20 22 25 25 25 25 24 25 25 25 25 25 24 25 25 25 25 25 24 25 25 25 24 25 24 25 25 24 25 24 22 25 Average Carried 21 | 2 13 19 19 19 12 17 20 24 24 24 22 20 22 24 24 22 22 21 24 24 24 25 23 22 24 24 23 23 23 21 19 24 22 24 21 20 22 Final Capacity 25 | 8 20 20 20 20 20 20 25 25 25 25 25 25 25 25 25 25 25 25 25 25 25 25 25 25 25 25 25 25 25 25 25 25 25 25 25 25 25 Final Carried 25 | 4 16 20 20 20 20 20 22 25 25 25 20 21 25 25 25 20 24 23 25 25 25 25 23 23 25 25 23 24 22 21 25 22 23 24 21 22 20 Scrap Engine Consumption 404 | . . . . . . . . . . . 6 3 . 4 4 17 16 48 7 21 10 5 37 6 17 32 2 . 5 10 49 25 26 26 22 6 . Constructs Created 18 | . . . . . . . . . . . 1 . . . . 3 1 1 . . . . 1 . 1 1 1 . . 1 3 1 1 1 1 . . Constructs Modified 155 | . . . . . . . . . . . 1 1 . 2 . 2 5 24 4 8 4 2 12 4 4 7 4 . 2 3 23 10 12 13 8 . . Class Distribution -------------------- 25% | Mutant 21% | Botlord-Construct 11% | Bothacker-Mutant 8% | Hacker-Construct 6% | Botlord-Mutant 5% | Hacker-Mutant 5% | Bothacker-Gunner 4% | Bothacker-Construct 3% | Tank Dominant Class ---------------- Mutant | -10/Materials Mutant | -10/Mines Mutant | -9/Materials Mutant | -9/Mines Mutant | -9/Exiles Mutant | -8/Mines Tank | -8/Materials Bothacker-Mutant | -8/Garrison Bothacker-Gunner | -8/Materials Bothacker-Gunner | -8/Garrison Bothacker-Mutant | -7/Factory Bothacker-Mutant | -7/Waste Bothacker-Mutant | -7/Factory Bothacker-Mutant | -7/Storage Bothacker-Mutant | -7/Garrison Bothacker-Mutant | -6/Factory Hacker-Mutant | -6/Waste Hacker-Construct | -6/Factory Botlord-Construct | -6/Garrison Botlord-Construct | -6/Extension Botlord-Construct | -6/Cetus Botlord-Construct | -6/Archives Botlord-Construct | -6/Hub_04(d) Bothacker-Construct | -5/Factory Botlord-Construct | -5/Garrison Botlord-Construct | -4/Factory Botlord-Mutant | -4/Upper Caves Botlord-Mutant | -4/Upper Caves Botlord-Mutant | -4/Zhirov Botlord-Mutant | -3/Proximity Caves Botlord-Construct | -3/Research Botlord-Construct | -3/Quarantine Mutant | -2/Research Mutant | -2/Testing Hacker-Mutant | -2/Section 7 Alien-Mutant | -2/Garrison Alien-Mutant | -1/Access Resources | -11 -10 -10 -9 -9 -9 -8 -8 -8 -8 -8 -7 -7 -7 -7 -7 -6 -6 -6 -6 -6 -6 -6 -6 -5 -5 -4 -4 -4 -4 -3 -3 -3 -2 -2 -2 -2 -1 ----------- Run | Scr Mat Min Mat Min Exi Min Mat Gar Mat Gar Fac Was Fac Sto Gar Fac Was Fac Gar Ext Cet Arc Hub Fac Gar Fac Upp Upp Zhi Pro Res Qua Res Tes Sec Gar Acc Matter Collected 29544 | 216 243 191 1425 300 1806 495 1198 682 702 1128 149 . 289 1340 458 401 734 1164 443 499 219 450 1901 326 1368 822 282 183 129 298 1342 1687 1127 1578 2008 581 1380 Remotely . | . . . . . . . . . . . . . . . . . . . . . . . . . . . . . . . . . . . . . . Salvage Created 38767 | . 255 247 1125 . 379 217 1299 472 1522 1094 80 235 184 1395 896 803 1015 3046 548 524 150 590 3432 440 1105 727 202 . 250 148 1460 3320 3539 2575 2344 2066 1083 Parts 1755 | . 18 13 84 . 61 25 85 29 83 61 5 6 10 75 40 28 18 119 17 20 5 39 137 23 38 31 11 . 11 6 67 135 161 103 77 73 41 Haulers Intercepted 38 | . . . 3 . . . 6 . 3 . 1 . . 3 . 1 . 3 . 1 . . 8 1 . 2 . . . . . 1 3 . 2 . . Recyclers Shooed 19 | . 2 . 2 . . . . . . . . . . . . . . 8 . 3 . . . . . 1 . . . . 2 . 1 . . . . Parts Field Recycled . | . . . . . . . . . . . . . . . . . . . . . . . . . . . . . . . . . . . . . . Retrieved Matter . | . . . . . . . . . . . . . . . . . . . . . . . . . . . . . . . . . . . . . . Parts Self-Destructed 21 | . . . . . . . . . . . . . . . . . . . . . . . . . . . 9 . 10 2 . . . . . . . Prevented 10 | . . . . . . . . . . . . . . . . . . . . . . . . . . . 2 . . 8 . . . . . . . Kills | -11 -10 -10 -9 -9 -9 -8 -8 -8 -8 -8 -7 -7 -7 -7 -7 -6 -6 -6 -6 -6 -6 -6 -6 -5 -5 -4 -4 -4 -4 -3 -3 -3 -2 -2 -2 -2 -1 ------- Run | Scr Mat Min Mat Min Exi Min Mat Gar Mat Gar Fac Was Fac Sto Gar Fac Was Fac Gar Ext Cet Arc Hub Fac Gar Fac Upp Upp Zhi Pro Res Qua Res Tes Sec Gar Acc Combat Hostiles Destroyed 541 | . 8 5 25 . 4 8 26 18 23 31 . 1 6 18 15 11 3 32 13 5 2 3 30 9 24 20 5 . . 2 16 43 33 34 29 24 15 Melee 2 | . . . . . . . . . . . . . . . . . . . 1 . . . . . . . . . . . 1 . . . . . . Guns 205 | . 2 2 14 . 1 4 16 5 15 15 . . . . . 5 3 22 2 . . . 1 1 1 . 4 . . . 5 16 10 22 25 6 8 Cannons 165 | . 1 1 7 . . . . . . . . 1 1 18 6 1 . 6 10 5 2 3 23 3 17 6 . . . . 10 15 18 6 1 1 3 AOE 128 | . 4 2 4 . 3 4 10 13 8 16 . . 5 . 9 4 . 4 . . . . . 5 6 14 . . . . . 3 . 4 2 6 2 Classes Destroyed 25 | . 3 2 4 . 3 . 1 1 1 . . 1 . 1 . . . . . 1 . 1 3 . . 2 . . . . . 1 . . . . . Worker 42 | . . 1 2 . . 3 2 . 4 . . . . 1 . . . 4 . . . . 8 . . 1 . . . . 5 6 1 2 . . 2 Builder 25 | . . . 1 . . . . . 3 . 1 . . . . 2 . 3 . 1 . . 3 . . 2 . . . . 2 . 3 1 3 . . Tunneler 5 | . . . . . . . . . 2 . . . . . . . . 1 . . . . . 1 . . . . . . 1 . . . . . . Hauler 38 | . . . 3 . . . 6 . 3 . 1 . . 3 . 1 . 3 . 1 . . 8 1 . 2 . . . . . 1 3 . 2 . . Recycler 26 | . . 1 2 . . . 1 . 2 . . . . 2 . 1 . 9 . . . . 3 . . . . . . . 2 . 3 . . . . Mechanic 2 | . . . . . . . . . . . . . . . . . . . . . . . . . . . . . . . . 1 1 . . . . Operator 12 | . . . . . . . . . . . . . . . . . . . . . . 9 1 . . . . . . . . . 1 1 . . . Turret 1 | . . . . . 1 . . . . . . . . . . . . . . . . . . . . . . . . . . . . . . . . Watcher 21 | . 1 . 4 . . . 3 . 1 . . . . 1 . 1 . 2 . . . . 4 . . . . . . . . 2 . 2 . . . Swarmer 117 | . 3 5 7 . . 7 11 7 2 13 . . 4 3 7 . . 13 . . 1 . . 5 5 9 4 . . . 2 5 . . . 4 . Saboteur 1 | . . . . . . . . . . . . . . . . . . . . . . . . . . 1 . . . . . . . . . . . Grunt 189 | . 5 . 9 . . . 8 7 14 11 . . 2 4 . 7 . 13 3 . . . 9 . 15 3 . . . . 4 24 8 13 14 15 1 Brawler 12 | . . . 1 . . . . 1 . 1 . . . . . . . 1 2 . . . 1 . 2 . . . . . . 2 1 . . . . Duelist 7 | . . . . . . . 1 . 2 . . . . . 2 . . 1 . . . . . . . 1 . . . . . . . . . . . Protector 3 | . . . . . . . . . . . . . . . . . . . . . . . 1 . . 2 . . . . . . . . . . . Sentry 64 | . . . 8 . . . 6 1 4 3 . . . 9 2 1 . 1 2 3 . 3 8 2 . . . . . . 2 . 3 . 3 1 2 Demolisher 1 | . . . . . . . . . . . . . . . . . . . . . . . . . . 1 . . . . . . . . . . . Specialist 2 | . . . . . . . . . . . . . . . . . . . . . . . 2 . . . . . . . . . . . . . . Hunter 41 | . . . . . . . . 2 1 3 . . . . . 1 . 1 . 1 . . 2 . . 2 . . . 2 3 3 4 5 3 2 6 Programmer 78 | . . . . . . . . . . . . . . 2 4 2 . 2 . . . . 3 2 2 1 . . . . 5 9 17 16 8 1 4 Heavy 1 | . . . . . . . . . . . . . . . . . . . . . . . 1 . . . . . . . . . . . . . . Behemoth 3 | . . . . . . . . . . . . . . . . . . . . 1 . . . . . . 1 . . . . . . . . 1 . Compactor 4 | . . . . . . . . . . . . 1 . . . . 3 . . . . . . . . . . . . . . . . . . . . Cetus Guard 1 | . . . . . . . . . . . . . . . . . . . . . 1 . . . . . . . . . . . . . . . . S7 Guard 1 | . . . . . . . . . . . . . . . . . . . . . . . . . . . . . . . . . . . 1 . . Lightning 3 | . . . . . . . . . . . . . . . . . . . . . . . 3 . . . . . . . . . . . . . . Combat Programmer 2 | . . . . . . . . . . . . . . . . . . . . . . . . . . . . . . . . . . . . . 2 Zionite 8 | . . . . . 8 . . . . . . . . . . . . . . . . . . . . . . . . . . . . . . . . Assembled 9 | . . . . . 3 . . . . . . . . . . . . . 6 . . . . . . . . . . . . . . . . . . Wasp 1 | . . . . . . . . . . . . . . . . . 1 . . . . . . . . . . . . . . . . . . . . Thug 1 | . . . . . . . . . . . . . . . . . 1 . . . . . . . . . . . . . . . . . . . . Guerrilla 2 | . . . . . . . . . . . . . . . . . . . . 1 1 . . . . . . . . . . . . . . . . Best Kill Streak 10 | . 3 3 5 . 4 7 6 6 9 7 1 1 4 5 4 6 1 6 2 2 1 8 6 5 8 10 4 . . 2 6 10 5 8 10 7 6 Combat Bots Only 10 | . 3 3 5 . 3 4 6 6 6 7 . 1 4 3 4 4 1 4 2 2 1 3 5 5 8 10 4 . . 2 3 8 4 4 10 7 6 Max Kills in Single Turn 7 | . 2 2 3 . 2 7 5 5 5 4 1 1 3 1 3 2 1 3 1 1 1 1 2 3 2 3 2 . . 1 1 3 2 4 3 2 2 Gunslinging 1 | . . 1 . . . 1 . . 1 1 . . . . . . . . . . . . . . . . . . . . . . . . . . . Exploded 5 | . 2 1 2 . 2 4 4 5 2 4 . . 3 . 3 1 . 3 . . . . . 3 2 3 . . . . . 1 . 1 1 2 1 Melee 1 | . . . . . . . . . . . . . . . . . . . 1 . . . . . . . . . . . 1 . . . . . . Uniques/NPCs Destroyed 6 | . . 1 . . 4 1 . . . . . . . . . . . . . . . . . . . . . . . . . . . . . . . YI-UF0 (-10/Mines) 8R-AWN (-9/Exiles) EX-HEX (-9/Exiles) EX-BIN (-9/Exiles) EX-DEC (-9/Exiles) ME-RLN (-8/Mines) Combat | -11 -10 -10 -9 -9 -9 -8 -8 -8 -8 -8 -7 -7 -7 -7 -7 -6 -6 -6 -6 -6 -6 -6 -6 -5 -5 -4 -4 -4 -4 -3 -3 -3 -2 -2 -2 -2 -1 -------- Run | Scr Mat Min Mat Min Exi Min Mat Gar Mat Gar Fac Was Fac Sto Gar Fac Was Fac Gar Ext Cet Arc Hub Fac Gar Fac Upp Upp Zhi Pro Res Qua Res Tes Sec Gar Acc Damage Taken 50258 | . 342 200 1117 . 1478 277 733 293 544 872 . . 267 986 1579 1131 . 3547 421 482 305 92 1224 678 1238 4081 287 . . 575 2534 4019 4345 3905 4417 1726 6563 Core 5300 | . 67 35 190 . 99 30 115 31 63 152 . . 26 153 184 220 . 324 39 28 26 . 76 59 84 409 66 . . 7 229 139 51 402 667 264 1065 Absorbed by Shields 6078 | . . . . . . . . . . . . . . . . . . . 32 69 192 . 46 . 86 . . . . 50 1398 423 805 2955 22 . . Reduced by Siege Mode 237 | . . . . . . . . . . . . . . . . . . 25 . . . . . . . . . . . . . . 212 . . . . Redirected to Shielding 448 | . 12 . . . . . . . . . . . . . . . . . . . . . . . . . . . . 137 . . 81 218 . . . Regen/Repaired (Parts) 17988 | . . . 150 . . . 227 . . . 128 . . 492 300 116 291 2003 186 217 134 64 545 518 246 1055 726 . 100 69 1524 1382 3687 1562 2266 . . Core Remaining (%) 48 | 100 . 59 . . . 20 . . . 34 . . . . 48 . . . . . . . 16 . 85 . . . . 58 . 67 . . . 8 33 Volleys Fired 2440 | . 34 18 88 . 89 26 61 32 47 68 4 11 14 95 93 50 110 225 41 36 11 109 123 19 95 61 25 . 25 21 116 123 146 148 132 71 73 Largest 4 | . 2 2 2 . 2 2 3 3 3 3 1 1 1 1 2 2 1 2 2 1 2 1 2 2 2 1 1 . 1 1 3 3 2 3 2 3 4 Hottest 293 | . 112 112 100 . 100 70 147 147 86 86 25 90 90 105 192 170 41 110 48 48 293 71 159 140 140 118 80 . 20 70 180 208 193 192 192 170 183 Shots Fired 3488 | . 59 32 170 . 164 42 171 51 131 149 4 11 14 94 84 77 110 238 63 36 12 106 132 25 100 61 26 . 25 20 198 220 222 244 151 92 154 Gun 1879 | . 32 16 95 . 149 41 167 44 126 124 4 . . . 1 54 103 205 24 . 1 . 5 6 15 1 13 . . . 72 88 85 112 129 37 130 Cannon 1191 | . 18 13 69 . 10 . . . . . . 5 6 88 66 16 . 29 38 34 11 47 118 16 68 33 11 . . 18 96 107 127 97 17 12 21 Launcher 171 | . 2 3 2 . 5 1 4 7 5 16 . . 7 . 11 7 . 4 . . . . . 3 10 18 . . . . . 5 7 6 4 41 3 Special 247 | . 7 . 4 . . . . . . 9 . 6 1 6 6 . 7 . 1 2 . 59 9 . 7 9 2 . 25 2 30 20 3 29 1 2 . Kinetic 1816 | . 16 16 164 . 149 41 114 37 126 124 4 . . . . 28 103 160 . 7 . . 20 . 5 17 9 . . 7 128 134 184 25 78 8 112 Thermal 1218 | . 23 . 4 . 10 . 53 7 . . . 5 6 88 67 42 . 74 62 27 12 106 93 6 51 17 4 . 25 . 38 23 28 211 68 29 39 Explosive 82 | . 2 3 2 . 5 1 4 7 . . . . 2 . 2 6 . 4 . . . . . 3 10 18 . . . . . . . 6 4 . 3 Electromagnetic 259 | . 18 13 . . . . . . 5 16 . . 5 . 9 1 . . . . . . 15 16 27 . 11 . . 11 9 43 7 . . 53 . Robot Hit Streak 34 | . 7 6 16 . 33 11 11 6 8 12 5 5 3 12 34 15 29 22 13 9 6 14 14 7 11 20 15 . 20 6 23 25 21 27 29 13 19 Robot Miss Streak 10 | . 3 2 5 . 5 3 4 4 10 9 1 2 6 4 3 5 5 4 5 4 2 4 6 2 3 2 1 . 1 1 3 2 3 3 3 4 4 Penetration Max 2 | . . . . . 1 . . . 1 . . . . . . 1 . 1 . . . . 1 . 1 . 1 . . . 1 2 1 1 2 1 2 Secondary Targets 13 | . . 1 1 . . 1 1 . 2 4 . . . . . . . . . . . . . . . . . . . . 1 . . . 1 . 1 Max Gunslinging Chain 1 | . . 1 1 . . 1 1 . 1 1 . . . . . . . . . . . . . . . . . . . . 1 . . . 1 . 1 Shots Hit Robots 2419 | . 35 21 106 . 107 30 109 18 75 81 3 8 5 48 42 56 106 193 42 38 9 78 111 18 49 42 18 . 23 13 143 173 184 173 109 54 99 Core Hits 1520 | . 18 12 46 . 40 18 66 40 91 82 2 1 10 17 27 48 78 123 25 15 7 31 90 13 34 46 7 . 13 4 46 104 93 69 101 43 60 Critical Kills 76 | . . . . . 4 . . . 1 . . . . 4 4 . 1 . . . . . . . . 2 . . . . 8 13 5 7 17 5 5 Critical Parts Destroyed 151 | . . . . . 9 9 . . 1 . . . . 6 9 1 3 . . . . . . . . . 1 . . . 17 16 7 8 43 6 15 Critical Strikes 291 | . 1 . 4 . 14 9 5 . 2 . . . . 11 13 1 7 . 1 2 . 2 . . . 3 1 . 1 2 31 29 13 19 81 14 25 Burn 13 | . . . . . . . 5 . . . . . . . . . . . . . . . . . . . . . . . . . . . 4 3 1 Meltdown 1 | . . . . . . . . . . . . . . . . . . . . . . . . . . . . . . . . . . . . . 1 Destroy 260 | . . . . . 14 9 . . 2 . . . . 11 13 1 7 . . . . . . . . 3 1 . . . 30 29 11 18 77 11 23 Blast 5 | . . . 4 . . . . . . . . . . . . . . . . 1 . . . . . . . . . . . . . . . . . Corrupt 4 | . 1 . . . . . . . . . . . . . . . . . . . . . . . . . . . . 2 1 . . . . . . Smash 3 | . . . . . . . . . . . . . . . . . . . . . . . . . . . . . . . . . 2 1 . . . Sever 4 | . . . . . . . . . . . . . . . . . . . . 1 . 2 . . . . . . 1 . . . . . . . . Impale 1 | . . . . . . . . . . . . . . . . . . . 1 . . . . . . . . . . . . . . . . . . Melee Attacks 152 | . . . 4 . . . . . . . . . . . . . . . 25 5 . . 2 . . . . . . . 37 20 43 12 4 . . Impact 48 | . . . . . . . . . . . . . . . . . . . . . . . . . . . . . . . . . 34 12 2 . . Slashing 87 | . . . 4 . . . . . . . . . . . . . . . 8 5 . . 2 . . . . . . . 37 20 9 . 2 . . Piercing 17 | . . . . . . . . . . . . . . . . . . . 17 . . . . . . . . . . . . . . . . . . Sneak Attacks 14 | . . . . . . . . . . . . . . . . . . . . 2 . . . . . . . . . . 7 . 5 . . . . Combat Hostiles . | . . . . . . . . . . . . . . . . . . . . . . . . . . . . . . . . . . . . . . Follow-up Attacks . | . . . . . . . . . . . . . . . . . . . . . . . . . . . . . . . . . . . . . . Damage Inflicted 92987 | . 787 468 2192 . 2444 714 2540 1263 2430 2303 52 275 384 3583 2552 2238 2430 5668 1017 1832 591 2109 7578 1445 3657 4343 536 . 247 577 4012 6741 8050 7927 4229 3107 2666 Guns 33315 | . 215 95 1039 . 1800 461 1765 219 1369 1166 52 . . . . 996 2430 4669 251 . . . 147 176 174 . 196 . . . 1287 3390 2572 4134 2396 918 1398 Cannons 34234 | . 330 193 980 . . . . . . . . 275 66 3583 1973 189 . 471 693 1536 591 1696 7087 582 2416 1003 340 . . 577 1476 1966 3374 1893 270 289 385 Explosions 20832 | . 220 177 128 . 644 253 775 1044 1061 1137 . . 318 . 579 1022 . 393 . . . . 125 612 1067 3306 . . . . . 1213 955 1518 1525 1900 860 Melee 2808 | . . . . . . . . . . . . . . . . . . . 73 296 . . 53 . . . . . . . 1055 . 1105 188 38 . . Ramming 924 | . 22 3 45 . . . . . . . . . . . . 31 . 135 . . . . 146 75 . 34 . . . . 194 172 44 . . . 23 Kinetic 31264 | . 91 95 2019 . 1800 461 1063 168 1369 1166 52 . . . . 391 2430 3847 . 281 . . 1002 . 177 419 196 . . 206 2057 3229 5440 566 1322 131 1286 Thermal 34301 | . 235 38 . . 398 . 702 51 708 189 . 275 66 3583 2053 794 . 1293 944 1255 591 2109 5208 176 1340 720 . . 247 . 579 997 792 5655 1344 1073 886 Explosive 12113 | . 109 139 128 . 246 253 775 1044 . . . . 159 . 162 956 . 393 . . . . . 612 1067 3170 . . . . . . . 904 1525 . 471 Electromagnetic 11577 | . 330 193 . . . . . . 353 948 . . 159 . 337 66 . . . . . . 1169 582 1073 . 340 . . 371 127 2343 669 614 . 1903 . Impact 1165 | . . . . . . . . . . . . . . . . . . . . . . . . . . . . . . . . . 977 188 . . . Slashing 1570 | . . . . . . . . . . . . . . . . . . . . 296 . . 53 . . . . . . . 1055 . 128 . 38 . . Piercing 73 | . . . . . . . . . . . . . . . . . . . 73 . . . . . . . . . . . . . . . . . . Highest Corruption 41 | . . 11 . . . . . . . . . 30 30 28 34 1 1 15 15 15 15 15 9 2 3 10 10 10 10 10 15 19 22 41 41 18 24 Average Corruption 14 | . . 8 . . . . . . . . . 13 29 26 30 1 1 10 15 15 15 12 4 2 2 9 10 10 10 10 13 14 14 28 7 11 13 Corruption Purged 33 | . . . . . . . . . . . . . 5 . . . . . . . . 15 . . . . . . . . . 8 5 . . . . Corruption Blocked 20 | . . . . . . . . . . . . . . . . . . . . . . . . . . . . . . . . . . 20 . . . Effects 1061 | . . 1 . . . . . . . . . 13 41 67 70 3 1 101 55 59 26 35 37 3 16 7 44 18 10 27 41 85 79 166 8 25 23 Message Errors 245 | . . . . . . . . . . . . 2 10 19 11 . 1 25 14 18 7 8 6 1 4 2 12 5 2 7 11 21 17 29 2 8 3 Matter Fused 250 | . . . . . . . . . . . . 4 9 22 13 . . 20 13 15 6 10 13 . 2 2 10 6 2 6 6 17 27 37 2 4 4 Heat Flow Errors 120 | . . . . . . . . . . . . 3 6 12 9 . . 11 9 3 4 4 2 . 2 1 5 2 2 4 2 9 6 19 2 1 2 Energy Discharges 121 | . . . . . . . . . . . . 2 8 6 7 . . 12 7 6 3 3 8 . . 1 7 1 . 3 8 8 7 17 1 2 4 Parts Rejected 25 | . . . . . . . . . . . . . . . 2 . . 3 . 2 1 . 1 . . . . . . . 3 2 2 8 . . 1 Data Loss (minor) 124 | . . 1 . . . . . . . . . . 2 5 10 1 . 12 6 8 1 4 3 1 3 . 7 3 2 5 3 8 9 22 1 4 3 Data Loss (major) 56 | . . . . . . . . . . . . 2 4 1 2 1 . 4 1 4 2 3 . 1 2 . 1 . 2 1 5 6 5 7 . . 2 Misfires 14 | . . . . . . . . . . . . . . . 1 . . 4 2 . . . . . 2 . 1 . . . . . . . . 4 . Alerts 26 | . . . . . . . . . . . . . 1 . 1 1 . 2 . 2 1 . 3 . 1 1 1 1 . . 1 5 2 3 . . . Misdirections 25 | . . . . . . . . . . . . . 1 1 3 . . 1 1 1 1 . . . . . . . . . 1 3 1 10 . . 1 Weapon Failures 55 | . . . . . . . . . . . . . . 1 11 . . 7 2 . . 3 1 . . . . . . 1 1 6 3 14 . 2 3 Overload Shots 5 | . . . . . . . . . . . . . . . 1 . . . . . 4 . . . . . . . . . . . . . . . . Effects 1 | . . . . . . . . . . . . . . . . . . . . . 1 . . . . . . . . . . . . . . . . Short Circuit 1 | . . . . . . . . . . . . . . . . . . . . . 1 . . . . . . . . . . . . . . . . Overflow Damage 3412 | . 8 31 3 . 8 . 16 10 85 2 . . . 622 250 19 . 28 8 103 . 188 251 169 80 191 30 . 16 28 303 66 432 264 89 34 78 Projectiles 1830 | . 8 . 3 . . . . . . . . . . 622 250 12 . 18 5 39 . 188 237 21 77 82 30 . 16 28 27 3 133 31 . . . Explosions 715 | . . 31 . . 8 . 16 10 85 2 . . . . . 5 . 1 . . . . . 107 3 109 . . . . . . 12 125 89 34 78 Melee 867 | . . . . . . . . . . . . . . . . 2 . 9 3 64 . . 14 41 . . . . . . 276 63 287 108 . . . Knockbacks 126 | . . . 5 . . . . . . . . . . . . . . 7 . . . . 5 1 1 5 . . . 1 19 27 52 3 . . . Impact 13 | . . . . . . . . . . . . . . . . . . 3 . . . . . 1 . 1 . . . . 3 1 2 2 . . . Kinetic 99 | . . . 4 . . . . . . . . . . . . . . 3 . . . . 5 . 1 4 . . . 1 15 23 43 . . . . Secondary 14 | . . . 1 . . . . . . . . . . . . . . 1 . . . . . . . . . . . . 1 3 7 1 . . . Self-Inflicted Damage 755 | . . 41 56 . . . 38 . 20 11 . . . . 92 . . . . . . . 104 . 37 35 . . . . . 9 74 . . 147 91 Shots 31 | . . 2 2 . . . 2 . 1 2 . . . . 4 . . . . . . . 2 . 3 2 . . . . . 1 2 . . 7 1 Rammed 32 | . 3 3 6 . . . . . . . . . . . . . . 2 . . . . 5 2 . . . . . . 6 3 2 . . . . Targets Rammed 53 | . 3 4 6 . . . . . . . . . . . . 2 . 9 . . . . 6 3 . 3 . . . . 7 4 3 . . . 3 Kicked 15 | . . . . . . . . . . . . . . . . 2 . 6 . . . . . 1 . 3 . . . . . . . . . . 3 Crushed 6 | . . 1 . . . . . . . . . . . . . . . 1 . . . . 1 . . . . . . . 1 1 1 . . . . Highest Temperature 534 | . 240 108 204 . 264 48 304 99 266 496 6 203 240 228 265 324 . 198 285 253 328 275 534 120 173 337 255 241 267 229 423 286 299 301 184 190 198 Average Temperature 86 | . 54 33 49 . 97 23 79 27 54 151 3 90 85 69 89 75 . 82 112 102 106 96 86 50 31 121 73 107 119 72 105 59 105 82 56 63 107 Received Heat Transfer 5835 | . 195 . 393 . . . 297 54 198 243 . . 27 324 273 168 . 963 121 84 7 . 183 72 198 106 . . . . 203 483 253 234 423 297 36 Effects 23 | . . . . . 3 . 3 . . 11 . . . 2 . . . . . . . . 3 . . 1 . . . . . . . . . . . Shutdowns 5 | . . . . . . . . . . 3 . . . . . . . . . . . . 1 . . 1 . . . . . . . . . . . Energy Bleed 7 | . . . . . 3 . . . . 3 . . . . . . . . . . . . 1 . . . . . . . . . . . . . . Interference 6 | . . . . . . . 3 . . . . . . 2 . . . . . . . . 1 . . . . . . . . . . . . . . Matter Decay 2 | . . . . . . . . . . 2 . . . . . . . . . . . . . . . . . . . . . . . . . . . Short Circuit 2 | . . . . . . . . . . 2 . . . . . . . . . . . . . . . . . . . . . . . . . . . Damage (minor) 1 | . . . . . . . . . . 1 . . . . . . . . . . . . . . . . . . . . . . . . . . . Siege Activations 6 | . . . . . . . . . . . . . . . . . . 2 . . . . . . . . . . . . . . 4 . . . . Total Turns 153 | . . . . . . . . . . . . . . . . . . 59 . . . . . . . . . . . . . . 94 . . . . Longest Duration 57 | . . . . . . . . . . . . . . . . . . 30 . . . . . . . . . . . . . . 57 . . . . Robots Corrupted 35 | . 1 . . . . . . . . . . . . . . . . . . . . . 5 1 . . 1 . . 2 . 10 4 1 . 10 . Combat Hostiles 33 | . 1 . . . . . . . . . . . . . . . . . . . . . 5 . . . 1 . . 2 . 9 4 1 . 10 . Parts Fried 69 | . 2 2 . . . . . . . 2 . . . . 2 . . . . . . . 9 1 5 . . . . 1 . 17 4 6 . 18 . Impact Corruptions 23 | . . . . . . . . . . . . . . . . 1 . 1 . . . . 1 2 . . . . . . 2 3 10 3 . . . Robots Melted 8 | . . . . . . . . . . . . . . . . 1 . . . . . . 3 . . . . . . . . . . 1 1 1 1 Combat Hostiles 6 | . . . . . . . . . . . . . . . . 1 . . . . . . 1 . . . . . . . . . . 1 1 1 1 Parts Melted 84 | . . 1 . . . . 2 . 1 . . . . 3 3 1 . 3 4 2 . 6 19 1 2 2 . . 1 . 1 . 1 18 11 1 1 Heat Transferred 39083 | . 425 50 . . 480 . 1887 111 550 150 . 240 37 1739 1691 1550 . 1904 2125 1480 447 2906 8250 185 851 431 . . 543 . 518 650 768 5703 1569 1125 718 Parts Sabotaged 3 | . . . . . . . . . . . . . . . . . . . . . . . . . . . . . . . . 1 . 2 . . . Parts Stolen 1 | . . . . . . . . . . . . . . . . . . . . . . . . . . . 1 . . . . . . . . . . Parts Stripped . | . . . . . . . . . . . . . . . . . . . . . . . . . . . . . . . . . . . . . . Power Chain Reactions 19 | . 2 . . . . . . . 5 4 . . . . 2 . . . . . . . 1 . . . . . . . . 1 2 . . 2 . Missiles Intercepted . | . . . . . . . . . . . . . . . . . . . . . . . . . . . . . . . . . . . . . . Alert | -11 -10 -10 -9 -9 -9 -8 -8 -8 -8 -8 -7 -7 -7 -7 -7 -6 -6 -6 -6 -6 -6 -6 -6 -5 -5 -4 -4 -4 -4 -3 -3 -3 -2 -2 -2 -2 -1 ------- Run | Scr Mat Min Mat Min Exi Min Mat Gar Mat Gar Fac Was Fac Sto Gar Fac Was Fac Gar Ext Cet Arc Hub Fac Gar Fac Upp Upp Zhi Pro Res Qua Res Tes Sec Gar Acc Peak Influence 1707 | . 129 172 694 250 . 208 587 1039 878 1707 933 246 278 309 869 455 101 445 919 538 453 225 815 425 1191 804 . . . . 250 783 492 925 1182 1579 1152 Initial 947 | . . . 23 250 . . 2 381 506 502 896 246 130 . 96 455 89 . 294 471 58 145 . 399 245 625 . . . . 15 140 105 261 519 886 947 Average 379 | . 58 34 212 250 . 94 282 691 622 1183 804 204 143 109 485 305 39 295 560 268 327 96 198 325 696 671 . . . . 106 300 263 386 729 1246 987 Maximum Alert Level 5 | . . . 2 1 . 1 2 3 3 5 3 1 1 1 3 2 . 2 3 2 2 1 3 2 4 3 . . . . 1 3 2 3 4 4 4 Low Security (%) 38 | 100 100 100 56 . . 65 34 . . . . 54 76 90 26 . 100 20 . 32 20 71 72 4 . . . . . . 90 52 30 17 . . . Level 1 25 | . . . 29 100 . 34 37 4 2 . . 45 23 9 12 85 . 62 5 47 68 28 6 76 20 . . . . . 9 8 54 56 5 . . Level 2 19 | . . . 13 . . . 28 64 75 6 13 . . . 34 14 . 17 67 20 11 . 20 18 29 66 . . . . . 37 15 8 53 . . Level 3 12 | . . . . . . . . 30 21 32 86 . . . 26 . . . 26 . . . . . 39 33 . . . . . 1 . 18 33 39 87 Level 4 3 | . . . . . . . . . . 47 . . . . . . . . . . . . . . 11 . . . . . . . . . 6 60 12 Level 5 . | . . . . . . . . . . 13 . . . . . . . . . . . . . . . . . . . . . . . . . . . High Security . | . . . . . . . . . . . . . . . . . . . . . . . . . . . . . . . . . . . . . . Max Security . | . . . . . . . . . . . . . . . . . . . . . . . . . . . . . . . . . . . . . . Squads Dispatched 108 | . 2 . 1 . . . . . 4 . 3 . 2 4 . 4 . 11 . 1 . . 14 2 . 6 . . . . 7 10 7 15 7 . 8 Investigation 16 | . . . 1 . . . . . . . 1 . 1 1 . 1 . 7 . . . . . . . . . . . . 1 1 1 . . . 1 Extermination 34 | . . . . . . . . . . . . . . 2 . 2 . 3 . . . . 3 1 . . . . . . 4 2 6 6 3 . 2 Reinforcement 37 | . 2 . . . . . . . 2 . 2 . 1 1 . 1 . 1 . 1 . . 6 1 . 3 . . . . 2 4 . 6 3 . 1 Assault 13 | . . . . . . . . . 1 . . . . . . . . . . . . . 1 . . 3 . . . . . 3 . 3 1 . 1 Garrison 5 | . . . . . . . . . 1 . . . . . . . . . . . . . 4 . . . . . . . . . . . . . . Intercept 3 | . . . . . . . . . . . . . . . . . . . . . . . . . . . . . . . . . . . . . 3 Searches Triggered . | . . . . . . . . . . . . . . . . . . . . . . . . . . . . . . . . . . . . . . Construction Impeded 9 | . . . . . . . . . 1 . . . . . . 1 . 1 . . . . . 1 . 1 . . . . . 1 . 1 1 . 1 Haulers Reinforced 7 | . . . . . . . . . . . 1 . . 1 . . . . . . . . 2 . . . . . . . . 1 . 1 1 . . Active Scanning Responses . | . . . . . . . . . . . . . . . . . . . . . . . . . . . . . . . . . . . . . . Cargo Convoy Interrupts 1 | . . . . . . . . . . . . . . . . . . . . . . . . . . 1 . . . . . . . . . . . Stealth | -11 -10 -10 -9 -9 -9 -8 -8 -8 -8 -8 -7 -7 -7 -7 -7 -6 -6 -6 -6 -6 -6 -6 -6 -5 -5 -4 -4 -4 -4 -3 -3 -3 -2 -2 -2 -2 -1 --------- Run | Scr Mat Min Mat Min Exi Min Mat Gar Mat Gar Fac Was Fac Sto Gar Fac Was Fac Gar Ext Cet Arc Hub Fac Gar Fac Upp Upp Zhi Pro Res Qua Res Tes Sec Gar Acc Distress Signals 27 | . 1 . 3 . . . 1 . 1 . . . . 2 . . . 3 . 2 2 . 3 1 . . . . . . 2 3 1 1 1 . . Communications Jammed 145 | . . . . . . . . . . . . . . . . . . . . . . . . . . . . . . . 93 15 3 34 . . . Distress Signals 145 | . . . . . . . . . . . . . . . . . . . . . . . . . . . . . . . 93 15 3 34 . . . Times Spotted 969 | . 21 6 34 . 44 9 38 17 32 24 1 5 7 24 27 13 6 56 16 26 17 70 53 13 34 43 8 2 . 3 46 63 50 56 47 26 32 Peak Tracking Total 14 | . 3 3 5 . 9 4 5 6 6 6 1 3 4 3 6 4 2 5 3 4 5 1 5 5 8 14 5 3 . 2 7 10 5 6 9 8 9 Tactical Retreats 71 | . 1 1 2 . 13 . 1 . 1 . . . . 2 . . . 7 3 . . . 5 . 2 1 2 . . . 6 4 2 3 6 5 4 Traps | -11 -10 -10 -9 -9 -9 -8 -8 -8 -8 -8 -7 -7 -7 -7 -7 -6 -6 -6 -6 -6 -6 -6 -6 -5 -5 -4 -4 -4 -4 -3 -3 -3 -2 -2 -2 -2 -1 ------- Run | Scr Mat Min Mat Min Exi Min Mat Gar Mat Gar Fac Was Fac Sto Gar Fac Was Fac Gar Ext Cet Arc Hub Fac Gar Fac Upp Upp Zhi Pro Res Qua Res Tes Sec Gar Acc Traps Triggered 54 | . . . . . . . . . . 6 2 . . 2 3 3 . 7 6 6 . . 1 . 4 1 . . . . 1 1 4 3 4 . . Indirectly . | . . . . . . . . . . . . . . . . . . . . . . . . . . . . . . . . . . . . . . Trap Hack Attempts . | . . . . . . . . . . . . . . . . . . . . . . . . . . . . . . . . . . . . . . Triggered . | . . . . . . . . . . . . . . . . . . . . . . . . . . . . . . . . . . . . . . Disarmed . | . . . . . . . . . . . . . . . . . . . . . . . . . . . . . . . . . . . . . . Reprogrammed . | . . . . . . . . . . . . . . . . . . . . . . . . . . . . . . . . . . . . . . Reused . | . . . . . . . . . . . . . . . . . . . . . . . . . . . . . . . . . . . . . . Traps Extracted . | . . . . . . . . . . . . . . . . . . . . . . . . . . . . . . . . . . . . . . Installed . | . . . . . . . . . . . . . . . . . . . . . . . . . . . . . . . . . . . . . . Triggered 3 | . 1 . . . . . . . . 1 . . . . . . . 1 . . . . . . . . . . . . . . . . . . . Exploded 3 | . . . . . 3 . . . . . . . . . . . . . . . . . . . . . . . . . . . . . . . . Machines | -11 -10 -10 -9 -9 -9 -8 -8 -8 -8 -8 -7 -7 -7 -7 -7 -6 -6 -6 -6 -6 -6 -6 -6 -5 -5 -4 -4 -4 -4 -3 -3 -3 -2 -2 -2 -2 -1 ---------- Run | Scr Mat Min Mat Min Exi Min Mat Gar Mat Gar Fac Was Fac Sto Gar Fac Was Fac Gar Ext Cet Arc Hub Fac Gar Fac Upp Upp Zhi Pro Res Qua Res Tes Sec Gar Acc Machines Disabled 135 | . . 1 3 . 17 . 1 2 7 6 . . 1 3 3 5 . . 2 1 4 3 25 1 10 10 . . . . 2 6 . 10 8 2 2 Max in Single Turn 8 | . . 1 1 . 3 . 1 1 3 2 . . 1 1 1 4 . . 1 . 1 1 8 1 1 7 . . . . 1 1 . 1 1 1 1 Garrison Access 2 | . . . . . . . . . . . . . . . . . . . . . . . . . . . . . . . . 1 . 1 . . . Garrison Relay 14 | . . . . . . . . 2 . 4 . . . . 2 . . . 2 . . . . . 4 . . . . . . . . . . . . Phase Generator 1 | . . . . . . . . . . 1 . . . . . . . . . . . . . . . . . . . . . . . . . . . Network Hub 2 | . . . . . . . . . . . . . . . . . . . . . . . 2 . . . . . . . . . . . . . . Energy Cycler 1 | . . . . . . . . . . . . . . . . . . . . . . . . . . . . . . . . . . . . . 1 Machines Sabotaged . | . . . . . . . . . . . . . . . . . . . . . . . . . . . . . . . . . . . . . . Overloaded Fab Kills . | . . . . . . . . . . . . . . . . . . . . . . . . . . . . . . . . . . . . . . Hacking | -11 -10 -10 -9 -9 -9 -8 -8 -8 -8 -8 -7 -7 -7 -7 -7 -6 -6 -6 -6 -6 -6 -6 -6 -5 -5 -4 -4 -4 -4 -3 -3 -3 -2 -2 -2 -2 -1 --------- Run | Scr Mat Min Mat Min Exi Min Mat Gar Mat Gar Fac Was Fac Sto Gar Fac Was Fac Gar Ext Cet Arc Hub Fac Gar Fac Upp Upp Zhi Pro Res Qua Res Tes Sec Gar Acc Machines Accessed 148 | . 6 1 6 . 2 . 13 2 4 3 2 . 2 15 2 3 . 6 1 11 1 . 5 5 2 4 . 1 4 . 8 14 9 9 4 1 2 Terminals 110 | . 6 . 4 . . . 9 2 2 3 . . 1 12 2 3 . 5 1 11 1 . 5 3 2 4 . . . . 6 11 6 6 2 1 2 Fabricators 6 | . . . . . . . . . . . 1 . 1 . . . . . . . . . . 1 . . . . . . 1 . 2 . . . . Repair Stations 12 | . . . 1 . . . 2 . . . 1 . . 2 . . . . . . . . . . . . . . . . 1 1 1 2 1 . . Recycling Units 2 | . . . 1 . . . 1 . . . . . . . . . . . . . . . . . . . . . . . . . . . . . . Scanalyzers 2 | . . . . . . . . . 1 . . . . . . . . . . . . . . . . . . . . . . 1 . . . . . Garrison Access 8 | . . . . . . . 1 . 1 . . . . 1 . . . 1 . . . . . 1 . . . . . . . 1 . 1 1 . . Total Hacks 450 | . 18 1 16 . 2 . 28 4 9 6 5 . 6 38 5 8 . 15 4 19 3 . 12 12 12 23 . 1 17 . 49 46 42 27 10 4 8 Successful 224 | . 10 1 10 . 2 . 20 1 5 4 4 . 3 21 1 3 . 5 1 17 . . 5 3 5 10 . 1 17 . 20 19 12 16 5 1 2 Failed 225 | . 8 . 6 . . . 8 3 4 2 1 . 3 16 4 5 . 10 3 2 3 . 7 9 7 13 . . . . 29 27 30 11 5 3 6 Catastrophic 47 | . 1 . 1 . . . 2 1 1 . . . . 1 . 1 . 2 1 . 2 . . 3 1 2 . . . . 2 12 7 4 1 . 2 Database Lockouts 1 | . . . . . . . . . . . . . . 1 . . . . . . . . . . . . . . . . . . . . . . . Manual 160 | . 9 . 10 . 1 . 8 . 4 3 2 . 6 15 . 4 . 6 3 7 1 . 4 6 5 9 . . . . 16 16 11 8 5 . 1 Terminals 342 | . 18 . 11 . . . 20 4 4 6 . . 3 30 5 8 . 14 4 19 3 . 12 8 12 23 . . . . 39 38 25 18 6 4 8 Fabricators 22 | . . . . . . . . . . . 2 . 3 . . . . . . . . . . 3 . . . . . . 6 . 8 . . . . Repair Stations 46 | . . . 4 . . . 4 . . . 3 . . 7 . . . . . . . . . . . . . . . . 4 4 9 8 3 . . Recycling Units 3 | . . . 1 . . . 2 . . . . . . . . . . . . . . . . . . . . . . . . . . . . . . Scanalyzers 7 | . . . . . . . . . 4 . . . . . . . . . . . . . . . . . . . . . . 3 . . . . . Garrison Access 9 | . . . . . . . 2 . 1 . . . . 1 . . . 1 . . . . . 1 . . . . . . . 1 . 1 1 . . Terminal Hacks 131 | . 8 1 4 . 2 . 8 1 2 4 . . 2 11 1 2 . 3 1 13 . . 4 1 3 6 . 1 17 . 13 10 4 6 1 1 1 Record 8 | . . . . . 1 . . . . . . . . . . . . . . . . . . . . . . . 5 . . 2 . . . . . Part Schematic 7 | . . . . . . . 1 . . . . . . 1 . . . . . . . . . . . 1 . . 4 . . . . . . . . Robot Schematic 1 | . . . . . . . . . . . . . . 1 . . . . . . . . . . . . . . . . . . . . . . . Robot Analysis 9 | . 1 . 1 . . . . . . . . . . 1 . . . . . . . . 1 . . . . . 4 . . 1 . . . . . Prototype ID Bank 18 | . 3 . 1 . . . 2 . . 1 . . . 2 . . . . . 1 . . . . . . . . 4 . 1 2 1 . . . . Open Door 15 | . . 1 . . . . . . . 1 . . . 2 1 . . . . 7 . . . . . . . 1 . . . 1 . . 1 . . Level Access Points 1 | . . . . . . . . . . . . . . . . . . . . . . . . . . . . . . . . . . . . . 1 Branch Access Points 3 | . . . . . . . . . . . . . 1 . . . . . . . . . . . . . . . . . 1 . 1 . . . . Emergency Access Points 6 | . . . . . . . . 1 . 1 . . . . . . . . 1 . . . . . 1 . . . . . 1 . . . . 1 . Machine Index 3 | . . . . . . . . . . . . . . . . 1 . . . . . . . . . 1 . . . . 1 . . . . . . Terminal Index 7 | . 1 . 1 . . . 1 . . . . . . 1 . . . . . . . . . . . . . . . . 1 1 . 1 . . . Alert Level 1 | . . . . . . . . . . . . . . . . . . . . . . . . . . . . . . . 1 . . . . . . Unreport Threat 15 | . 1 . . . . . . . 2 . . . . 1 . 1 . 1 . 3 . . 1 . . 2 . . . . . 1 1 1 . . . Locate Traps 10 | . . . 1 . . . 2 . . . . . . . . . . 1 . 1 . . . 1 . 1 . . . . 1 . . 2 . . . Surveillance Status 1 | . . . . . . . . . . . . . . . . . . . . . . . . . . . . . . . 1 . . . . . . Transport Status 1 | . . . . . . . . . . . . . . . . . . . . . . . . . . . . . . . 1 . . . . . . Recall Extermination 2 | . . . . . . . . . . . . . . 1 . . . . . . . . . . . . . . . . 1 . . . . . . Recall Reinforcements 1 | . . . . . . . . . . . . . 1 . . . . . . . . . . . . . . . . . . . . . . . . Hauler Manifests 3 | . 1 . . . . . 1 . . . . . . . . . . . . . . . . . . . . . . . 1 . . . . . . Zone Layout 15 | . 1 . . . . . 1 . . . . . . 1 . . . 1 . 1 . . 2 . 1 1 . . . . 2 2 1 1 . . . Security Stations 2 | . . . . . . . . . . 1 . . . . . . . . . . . . . . 1 . . . . . . . . . . . . EX-Prototype ID Bank 1 | . . . . . 1 . . . . . . . . . . . . . . . . . . . . . . . . . . . . . . . . Protovariant Controls 1 | . . . . . . . . . . . . . . . . . . . . . . . . . . . . . . . . . . 1 . . . Fabricator Hacks 5 | . . . . . . . . . . . . . . . . . . . . . . . . 1 . . . . . . 2 . 2 . . . . Load Schematic 2 | . . . . . . . . . . . . . . . . . . . . . . . . . . . . . . . 1 . 1 . . . . Build 3 | . . . . . . . . . . . . . . . . . . . . . . . . 1 . . . . . . 1 . 1 . . . . Repair Station Hacks 31 | . . . 4 . . . 4 . . . 2 . . 6 . . . . . . . . . . . . . . . . 2 2 4 5 2 . . Scan Component 18 | . . . 2 . . . 2 . . . 1 . . 3 . . . . . . . . . . . . . . . . 1 2 3 3 1 . . Repair 13 | . . . 2 . . . 2 . . . 1 . . 3 . . . . . . . . . . . . . . . . 1 . 1 2 1 . . Recycling Unit Hacks 2 | . . . . . . . 2 . . . . . . . . . . . . . . . . . . . . . . . . . . . . . . Report Inventory 1 | . . . . . . . 1 . . . . . . . . . . . . . . . . . . . . . . . . . . . . . . Retrieve Components 1 | . . . . . . . 1 . . . . . . . . . . . . . . . . . . . . . . . . . . . . . . Scanalyzer 5 | . . . . . . . . . 2 . . . . . . . . . . . . . . . . . . . . . . 3 . . . . . Insert Component 4 | . . . . . . . . . 1 . . . . . . . . . . . . . . . . . . . . . . 3 . . . . . Analyze 1 | . . . . . . . . . 1 . . . . . . . . . . . . . . . . . . . . . . . . . . . . Garrison Access Hacks 8 | . . . . . . . 1 . 1 . . . . 1 . . . 1 . . . . . 1 . . . . . . . 1 . 1 1 . . Unlock Access 6 | . . . . . . . 1 . 1 . . . . 1 . . . 1 . . . . . 1 . . . . . . . . . . 1 . . Seal Access 2 | . . . . . . . . . . . . . . . . . . . . . . . . . . . . . . . . 1 . 1 . . . Unauthorized Hacks 42 | . 2 . 2 . . . 5 . . . 2 . 1 3 . 1 . 1 . 4 . . 1 . 2 4 . . . . 3 3 2 4 1 . 1 Terminals 39 | . 2 . 1 . . . 5 . . . . . 1 3 . 1 . 1 . 4 . . 1 . 2 4 . . . . 3 3 2 4 1 . 1 Track 10 | . . . . . . . 1 . . . . . . 2 . . . . . . . . 1 . 2 1 . . . . 1 1 . 1 . . . Assimilate 10 | . 1 . . . . . 2 . . . . . 1 1 . . . 1 . . . . . . . . . . . . . . 2 1 . . 1 Botnet 13 | . . . . . . . 2 . . . . . . . . . . . . 3 . . . . . 2 . . . . 2 2 . 1 1 . . Operators 6 | . 1 . 1 . . . . . . . . . . . . 1 . . . 1 . . . . . 1 . . . . . . . 1 . . . Fabricators 2 | . . . . . . . . . . . 2 . . . . . . . . . . . . . . . . . . . . . . . . . . Liberate 1 | . . . . . . . . . . . 1 . . . . . . . . . . . . . . . . . . . . . . . . . . Fabnet 1 | . . . . . . . . . . . 1 . . . . . . . . . . . . . . . . . . . . . . . . . . Repair Stations . | . . . . . . . . . . . . . . . . . . . . . . . . . . . . . . . . . . . . . . Recycling Units 1 | . . . 1 . . . . . . . . . . . . . . . . . . . . . . . . . . . . . . . . . . Tunnel 1 | . . . 1 . . . . . . . . . . . . . . . . . . . . . . . . . . . . . . . . . . Scanalyzers . | . . . . . . . . . . . . . . . . . . . . . . . . . . . . . . . . . . . . . . Garrison Access . | . . . . . . . . . . . . . . . . . . . . . . . . . . . . . . . . . . . . . . Data Cores Recovered 2 | . . . . . . . . . . . . . . . . . . . . . . . . . . . . . . . . . 1 1 . . . Used 1 | . . . . . . . . . . . . . . . . . . . . . . . . . . . . . . . . . 1 . . . . Hacking Detections 107 | . 5 . 4 . . . 9 1 3 3 1 . 2 10 2 3 . 6 1 6 1 . 5 4 2 4 . . . . 7 8 9 7 2 . 2 Full Trace Events 10 | . . . . . . . . 1 . . . . 1 1 1 . . 3 . . . . . . . . . . . . 1 . 1 . . . 1 Feedback Events 2 | . . . . . . . . . . . . . . . 1 . . . . . . . . . . . . . . . . . . . . . 1 Corruption 2 | . . . . . . . . . . . . . . . 1 . . . . . . . . . . . . . . . . . . . . . 1 Feedback Blocked . | . . . . . . . . . . . . . . . . . . . . . . . . . . . . . . . . . . . . . . Robot Schematics Acquired 1 | . . . . . . . . . . . . . . 1 . . . . . . . . . . . . . . . . . . . . . . . Robots Built . | . . . . . . . . . . . . . . . . . . . . . . . . . . . . . . . . . . . . . . Authchips . | . . . . . . . . . . . . . . . . . . . . . . . . . . . . . . . . . . . . . . Time . | . . . . . . . . . . . . . . . . . . . . . . . . . . . . . . . . . . . . . . Total Robot Build Rating . | . . . . . . . . . . . . . . . . . . . . . . . . . . . . . . . . . . . . . . Part Schematics Acquired 15 | . . . . . . . 1 . . . . . . 1 . . . . . . . . . . . 1 . . 4 . . . . 8 . . . Parts Built 4 | . . . . . . . . . . . . . . . . . . . . . . . . 1 . . . . . . 2 . 1 . . . . Authchips . | . . . . . . . . . . . . . . . . . . . . . . . . . . . . . . . . . . . . . . Time 151 | . . . . . . . . . . . . . . . . . . . . . . . . 69 . . . . . . 31 . 51 . . . . Total Part Build Rating 20 | . . . . . . . . . . . . . . . . . . . . . . . . 9 . . . . . . 10 . 1 . . . . Parts Repaired 13 | . . . 2 . . . 2 . . . 1 . . 3 . . . . . . . . . . . . . . . . 1 . 1 2 1 . . Time 547 | . . . 52 . . . 100 . . . 19 . . 144 . . . . . . . . . . . . . . . . 26 . 108 62 36 . . Parts Recycled . | . . . . . . . . . . . . . . . . . . . . . . . . . . . . . . . . . . . . . . Recycled Matter . | . . . . . . . . . . . . . . . . . . . . . . . . . . . . . . . . . . . . . . Retrieved Matter . | . . . . . . . . . . . . . . . . . . . . . . . . . . . . . . . . . . . . . . Retrieved Components 10 | . . . . . . . 10 . . . . . . . . . . . . . . . . . . . . . . . . . . . . . . Parts Scanalyzed 1 | . . . . . . . . . 1 . . . . . . . . . . . . . . . . . . . . . . . . . . . . Part Schematics Acquired . | . . . . . . . . . . . . . . . . . . . . . . . . . . . . . . . . . . . . . . Parts Damaged . | . . . . . . . . . . . . . . . . . . . . . . . . . . . . . . . . . . . . . . Bothacking | -11 -10 -10 -9 -9 -9 -8 -8 -8 -8 -8 -7 -7 -7 -7 -7 -6 -6 -6 -6 -6 -6 -6 -6 -5 -5 -4 -4 -4 -4 -3 -3 -3 -2 -2 -2 -2 -1 ------------ Run | Scr Mat Min Mat Min Exi Min Mat Gar Mat Gar Fac Was Fac Sto Gar Fac Was Fac Gar Ext Cet Arc Hub Fac Gar Fac Upp Upp Zhi Pro Res Qua Res Tes Sec Gar Acc Used RIF Installer 7 | . . . . . . . . 1 . 1 . . . . 1 . . . 2 . . . . . 2 . . . . . . . . . . . . Hotswap 1 | . . . . . . . . . . . . . . . . . . . 1 . . . . . . . . . . . . . . . . . . Command Fork 1 | . . . . . . . . . . . . . . . . . . . . . . . . . 1 . . . . . . . . . . . . Threat Obfuscator 1 | . . . . . . . . . . . . . . . 1 . . . . . . . . . . . . . . . . . . . . . . Signal Jammer 1 | . . . . . . . . . . . . . . . . . . . 1 . . . . . . . . . . . . . . . . . . Zone Cloak 1 | . . . . . . . . . . 1 . . . . . . . . . . . . . . . . . . . . . . . . . . . Autoassimilate 1 | . . . . . . . . . . . . . . . . . . . . . . . . . 1 . . . . . . . . . . . . Robots Hacked 64 | . . . . . . . . . . 1 . 6 1 3 4 . 6 1 2 4 . . 6 . 6 4 1 . . 2 9 6 2 . . . . Non-combat 16 | . . . . . . . . . . 1 . . 1 3 . . . . . . . . . . . . . . . . 6 4 1 . . . . Combat 48 | . . . . . . . . . . . . 6 . . 4 . 6 1 2 4 . . 6 . 6 4 1 . . 2 3 2 1 . . . . Autoassimilated 2 | . . . . . . . . . . . . . . . . . . . . . . . . . . 2 . . . . . . . . . . . Robot Hacks Applied 71 | . . . . . . . . . . 1 . 6 1 4 4 . 7 . . 2 . . 4 . 6 2 1 . . 2 9 20 2 . . . . parse_system 1 | . . . . . . . . . . . . . 1 . . . . . . . . . . . . . . . . . . . . . . . . drop_inventory 6 | . . . . . . . . . . . . . . 2 . . . . . . . . . . . . . . . . 3 1 . . . . . purge_threat 7 | . . . . . . . . . . . . . . 1 . . . . . . . . . . . . . . . . . 6 . . . . . find_terminals 1 | . . . . . . . . . . . . . . 1 . . . . . . . . . . . . . . . . . . . . . . . block_reporting 2 | . . . . . . . . . . . . . . . . . . . . . . . . . . . . . . . . 1 1 . . . . map_route 2 | . . . . . . . . . . . . . . . . . . . . . . . . . . . . . . . 1 1 . . . . . relay_feed 2 | . . . . . . . . . . . . . . . . . . . . . . . . . . . . . . . 2 . . . . . . disable_scanner 1 | . . . . . . . . . . . . . . . . . . . . . . . . . . . . . . . . 1 . . . . . report_prototypes 4 | . . . . . . . . . . . . . . . . . . . . . . . . . . . . . . . . 4 . . . . . report_analyses 5 | . . . . . . . . . . . . . . . . . . . . . . . . . . . . . . . . 5 . . . . . ignore_targets 13 | . . . . . . . . . . . . 6 . . . . 7 . . . . . . . . . . . . . . . . . . . . overload_power 1 | . . . . . . . . . . . . . . . . . . . . . . . . . . . . . . . 1 . . . . . . amplify_resonance 1 | . . . . . . . . . . . . . . . . . . . . . . . . . . 1 . . . . . . . . . . . wipe_record 1 | . . . . . . . . . . . . . . . . . . . . . . . 1 . . . . . . . . . . . . . . disable_weapons 2 | . . . . . . . . . . . . . . . . . . . . . . . . . . . 1 . . . 1 . . . . . . reboot_system 1 | . . . . . . . . . . . . . . . . . . . . . . . . . . . . . . . . . 1 . . . . overwrite_iff 3 | . . . . . . . . . . . . . . . 1 . . . . . . . . . 1 1 . . . . . . . . . . . formatsys_low 1 | . . . . . . . . . . . . . . . . . . . . . . . . . . . . . . . . 1 . . . . . formatsys_high 17 | . . . . . . . . . . 1 . . . . 3 . . . . 2 . . 3 . 5 . . . . 2 1 . . . . . . Relay Couplers Released 62 | . . . . . . . . 8 . 18 . . . . 10 . . . 6 . . . . . 20 . . . . . . . . . . . . Machine Destruction 59 | . . . . . . . . 8 . 18 . . . . 7 . . . 6 . . . . . 20 . . . . . . . . . . . . Programmers 3 | . . . . . . . . . . . . . . . 3 . . . . . . . . . . . . . . . . . . . . . . Attached 18 | . . . . . . . . . . 1 1 . 1 . 2 . 1 . . 1 1 . 1 . 5 . 1 . . . 2 1 . . . . . Fabnet Peak Effective % 3 | . . . . . . . . . . . . . . . . 3 3 3 3 3 3 3 3 1 1 . . . . . . . . . . . . Autooverrided 7 | . . . . . . . . . . . . . . . . . . 1 2 2 . . 2 . . . . . . . . . . . . . . Robots Rewired 30 | . . . . . . . . . . 5 . . . . . . . . 9 11 . . . . . 3 . . . . . . . 1 . 1 . Allies Hacked 5 | . . . . . . . . . . . . . . . 1 . . . . . . . . . . 1 . . . . . . 1 1 . . 1 Hacks Repelled . | . . . . . . . . . . . . . . . . . . . . . . . . . . . . . . . . . . . . . . Allies | -11 -10 -10 -9 -9 -9 -8 -8 -8 -8 -8 -7 -7 -7 -7 -7 -6 -6 -6 -6 -6 -6 -6 -6 -5 -5 -4 -4 -4 -4 -3 -3 -3 -2 -2 -2 -2 -1 -------- Run | Scr Mat Min Mat Min Exi Min Mat Gar Mat Gar Fac Was Fac Sto Gar Fac Was Fac Gar Ext Cet Arc Hub Fac Gar Fac Upp Upp Zhi Pro Res Qua Res Tes Sec Gar Acc Total Allies 116 | . . . . . . . . . . 7 3 . . 11 6 . 18 1 11 25 . . 5 . 8 6 . . . 2 1 1 1 1 . 1 8 Largest Group 18 | . . . . . . . . . . 3 3 3 . 10 10 . 18 16 9 17 15 4 2 . 5 9 . . . 1 1 1 1 1 . 1 1 Highest-Rated Group 638 | . . . . . . . . . . 120 120 48 . 173 173 . 638 559 192 605 605 252 133 . 262 472 . . . 64 64 45 26 157 . 85 45 Highest-Rated Ally 159 | . . . . . . . . . . 40 40 16 . 29 39 . 50 50 40 159 159 159 90 . 95 95 . . . 64 64 45 26 157 . 85 45 Total Orders 73 | . . . . . . 1 1 . . 6 1 . 9 1 . . . . . 4 2 2 3 . 2 . 1 3 . 4 20 10 1 2 . . . STAY 18 | . . . . . . . . . . 1 . . 1 . . . . . . 2 1 1 . . . . . . . . 5 5 1 1 . . . FOLLOW 12 | . . . . . . . . . . . . . . . . . . . . 2 1 1 . . . . . . . . 4 3 . 1 . . . RETURN 43 | . . . . . . 1 1 . . 5 1 . 8 1 . . . . . . . . 3 . 2 . 1 3 . 4 11 2 . . . . . Ally Attacks 755 | . . . . . . . . . . 6 19 67 . . 88 . 80 73 18 183 84 10 34 . 18 34 . . . 12 11 . . 16 . 2 . Total Damage 16956 | . . . . . . . . . . 119 223 725 . . 1708 . 1773 1372 252 3362 2354 312 966 . 562 1312 . . . 208 394 . . 1202 . 112 . Kills 117 | . . . . . . . . . . 1 1 . . . 16 . 3 16 . 25 24 1 8 . 3 5 . . . 2 4 . . 8 . . . Allies Corrupted 2 | . . . . . . . . . . . . . . . . . . 1 . . . . . . . . . . . . . . . 1 . . . Allies Melted 2 | . . . . . . . . . . . . . . . . . . . . . . . . . . . . . . 1 . . . . . 1 . Intel | -11 -10 -10 -9 -9 -9 -8 -8 -8 -8 -8 -7 -7 -7 -7 -7 -6 -6 -6 -6 -6 -6 -6 -6 -5 -5 -4 -4 -4 -4 -3 -3 -3 -2 -2 -2 -2 -1 ------- Run | Scr Mat Min Mat Min Exi Min Mat Gar Mat Gar Fac Was Fac Sto Gar Fac Was Fac Gar Ext Cet Arc Hub Fac Gar Fac Upp Upp Zhi Pro Res Qua Res Tes Sec Gar Acc Robot Analysis Total 9 | . 1 . 1 . . . . . . . . . . 1 . . . . . . . . 1 . . . . . 4 . . 1 . . . . . Derelict Logs Recovered 3 | . . 2 . . . . . . . . . . . . . . . . . . . . . . . . 1 . . . . . . . . . . Drone Launches 58 | . . . . . . 2 . 1 . 5 1 . 9 2 . . . . . . . . 6 2 3 . 1 3 . 4 14 5 . . . . . Drone Recoveries 49 | . . . . . . 1 1 1 . 5 1 . 9 1 . . . . . . . . 5 1 3 . 1 3 . 4 11 2 . . . . . Exploration | -11 -10 -10 -9 -9 -9 -8 -8 -8 -8 -8 -7 -7 -7 -7 -7 -6 -6 -6 -6 -6 -6 -6 -6 -5 -5 -4 -4 -4 -4 -3 -3 -3 -2 -2 -2 -2 -1 ------------- Run | Scr Mat Min Mat Min Exi Min Mat Gar Mat Gar Fac Was Fac Sto Gar Fac Was Fac Gar Ext Cet Arc Hub Fac Gar Fac Upp Upp Zhi Pro Res Qua Res Tes Sec Gar Acc Turns Passed 48226 | 47 1462 1492 1691 118 2269 461 1582 1161 885 1904 725 318 842 1441 1129 899 1042 2785 1291 1363 630 1280 1876 937 1351 796 1317 570 340 756 2848 1889 2638 3121 1428 641 901 Spaces Moved 24906 | 39 585 583 746 109 1296 336 822 639 521 816 414 151 334 699 591 442 466 1562 589 820 360 419 1163 735 893 492 586 274 170 496 1285 1164 1582 1113 572 378 664 Core 12 | 2 . . . . . . . . . . . . . . . . . . . . . 10 . . . . . . . . . . . . . . . Treads 9812 | . 430 583 358 . 356 . . . . . . 83 190 . . 41 391 898 . 281 360 409 1163 363 . . . . . . 264 1164 1539 531 408 . . Legs 5466 | . . . . . . . . . . . . . . . . 193 75 664 589 539 . . . 372 893 492 . . . . 124 . 43 582 69 348 483 Wheels 6887 | 37 155 . 388 109 940 336 822 639 521 816 414 68 144 699 591 208 . . . . . . . . . . . . . . . . . . . . . Hover 1399 | . . . . . . . . . . . . . . . . . . . . . . . . . . . . . 6 496 897 . . . . . . Flight 1024 | . . . . . . . . . . . . . . . . . . . . . . . . . . . 586 274 164 . . . . . . . . Fastest Speed 50 | 50 90 240 105 105 105 105 105 123 123 123 131 131 120 120 125 125 118 118 129 109 100 100 100 89 89 89 69 180 96 96 95 95 95 170 130 130 115 Average Speed 140 | 87 203 240 159 105 127 105 123 129 129 190 160 190 194 141 138 146 126 135 145 118 105 139 111 105 89 121 178 180 138 119 139 95 113 213 192 130 125 Slowest Speed 1750 | 90 240 240 240 105 240 105 138 138 145 220 205 240 240 145 145 195 167 174 160 129 115 1750 115 115 89 185 195 180 180 199 199 95 170 217 217 130 130 Overloaded Moves . | . . . . . . . . . . . . . . . . . . . . . . . . . . . . . . . . . . . . . . Propulsion Burnouts . | . . . . . . . . . . . . . . . . . . . . . . . . . . . . . . . . . . . . . . Robots Hopped . | . . . . . . . . . . . . . . . . . . . . . . . . . . . . . . . . . . . . . . Cave-ins Triggered . | . . . . . . . . . . . . . . . . . . . . . . . . . . . . . . . . . . . . . . Teleports 4 | . . . . . . . . . . . . . . . . . . . . . . . . . . . . . . . . 1 . 1 2 . . Microwarps 22 | . . . . . . . . . . . . . . . . . . . . . . . . . . . . . . . . . . . 9 2 11 Exploration Rate (%) 58 | 3 93 99 59 41 91 78 78 66 47 78 11 81 9 86 61 9 97 39 54 89 78 94 78 15 88 13 68 41 60 64 34 91 35 88 30 42 17 Regions Visited 37 Branch Regions 16 Pre-discovered Areas 6 | . . 1 1 . 1 . . . . . . . . . . . . . . . . . . . . . . . 3 . . . . . . . . Known Exits Taken 14 | . . . 1 . . . 1 . 1 . . . 1 1 . . . 1 . . . . 1 1 . . 1 . . 1 1 1 1 . 1 . . Unknown Exits Taken 13 | 1 1 1 . 1 1 1 . . . . . . . . . . . . . 1 1 1 . . . 1 . 1 1 . . . . 1 . . . Scrap Searched 7 | . . 1 . . . 1 . . . . . . . . . . . . . . . . . . . . 3 . . 2 . . . . . . . Spaces Dug 192 | . 4 26 7 . . . . 1 . . . . . 13 11 . . 1 3 . 1 . 2 . 6 13 1 . . . 22 16 34 9 13 . 9 Terrain Destroyed 1710 | . 32 33 47 . 45 20 59 26 73 83 . 1 11 36 37 31 . 48 3 14 3 8 392 40 73 114 2 . . 2 40 39 94 188 66 10 40 Melee 77 | . . . 4 . . . . . . . . . . . . . . . 3 . . . 1 . . . . . . . 17 16 30 4 2 . . Projectile 444 | . 7 . 7 . 1 4 . . 22 3 . 1 . 36 11 8 . 15 . 14 3 8 64 13 32 8 2 . . 1 23 12 45 40 33 8 23 AOE 1187 | . 25 33 36 . 44 16 59 26 51 80 . . 11 . 26 23 . 33 . . . . 327 27 41 106 . . . . . 11 19 144 30 2 17 Terrain Rammed . | . . . . . . . . . . . . . . . . . . . . . . . . . . . . . . . . . . . . . . Walls Destroyed . | . . . . . . . . . . . . . . . . . . . . . . . . . . . . . . . . . . . . . . Machines Disabled . | . . . . . . . . . . . . . . . . . . . . . . . . . . . . . . . . . . . . . . Actions | -11 -10 -10 -9 -9 -9 -8 -8 -8 -8 -8 -7 -7 -7 -7 -7 -6 -6 -6 -6 -6 -6 -6 -6 -5 -5 -4 -4 -4 -4 -3 -3 -3 -2 -2 -2 -2 -1 --------- Run | Scr Mat Min Mat Min Exi Min Mat Gar Mat Gar Fac Was Fac Sto Gar Fac Was Fac Gar Ext Cet Arc Hub Fac Gar Fac Upp Upp Zhi Pro Res Qua Res Tes Sec Gar Acc Total 34611 | 48 775 636 1086 112 1737 400 1263 928 650 1070 476 173 507 1051 809 614 802 1972 907 1160 598 942 1591 869 1347 618 838 351 224 639 2086 1723 2118 1563 829 450 649 Wait 5572 | . 120 14 121 . 279 5 340 227 55 100 34 3 139 224 75 96 206 149 150 209 210 404 210 78 287 31 198 76 13 91 541 309 259 171 130 8 10 Move 24591 | 38 584 582 745 108 1295 335 821 638 521 815 414 150 333 699 590 442 465 1562 588 819 359 418 1162 735 892 491 585 273 169 495 1284 1163 1581 1112 486 349 493 Hop . | . . . . . . . . . . . . . . . . . . . . . . . . . . . . . . . . . . . . . . Pick Up 285 | 4 11 4 30 1 24 16 7 9 3 9 . 1 3 6 7 2 7 5 12 2 1 . 9 3 23 4 2 1 3 5 13 20 10 14 7 . 7 Fast Attach 260 | 6 6 1 7 . 4 3 10 . 3 3 6 2 3 9 4 4 4 6 7 4 3 5 16 6 1 7 2 . 5 4 18 14 13 25 19 8 22 Attach 189 | . 2 . 1 . 8 1 2 2 . 3 2 . 1 3 7 6 2 7 4 2 1 . 8 8 1 4 11 . 2 6 10 16 12 15 20 5 17 Detach 123 | . 2 1 3 . 2 1 2 . . . 2 . 1 1 5 3 . 5 1 1 1 . 7 3 1 1 10 . 2 4 7 8 9 9 15 5 11 Swap 381 | . 11 11 36 2 14 8 9 13 11 23 3 . 10 4 7 . 1 . 6 10 6 3 23 6 20 9 1 1 . 4 34 19 28 36 8 2 2 Drop 372 | . 2 1 45 1 22 5 11 6 10 9 11 6 3 9 4 9 7 4 14 4 6 3 25 8 21 6 4 . 5 9 19 27 14 21 8 2 11 Fire 2440 | . 34 18 88 . 89 26 61 32 47 68 4 11 14 95 93 50 110 225 41 36 11 109 123 19 95 61 25 . 25 21 116 123 146 148 132 71 73 Melee 152 | . . . 4 . . . . . . . . . . . . . . . 25 5 . . 2 . . . . . . . 37 20 43 12 4 . . Ram 1 | . . . . . . . . . . . . . . 1 . . . . . . . . . . . . . . . . . . . . . . . Kick 15 | . . . . . . . . . . . . . . . . 2 . 6 . . . . . 1 . 3 . . . . . . . . . . 3 Crush 38 | . 3 4 6 . . . . . . . . . . . . . . 3 . . . . 6 2 . . . . . . 7 4 3 . . . . Escape Stasis 91 | . . . . . . . . . . 40 . . . . 16 . . . 15 15 . . . . 4 1 . . . . . . . . . . . Rewire 101 | . . . . . . . . 1 . . . . . . 1 . . . 44 53 . . . . 2 . . . . . . . . . . . . Trap . | . . . . . . . . . . . . . . . . . . . . . . . . . . . . . . . . . . . . . . Miscellaneous . | . . . . . . . . . . . . . . . . . . . . . . . . . . . . . . . . . . . . . . Route ------- -11/Scrapyard -10/Materials (discovered 5 exits: *Mat x3 / *Min x2) -10/Mines (discovered 2 exits: *Mat x2) -9/Materials (discovered 3 exits: *Mat x2 / *Min) -9/Mines (discovered 3 exits: *Mat / *Exi / [*Zio]) -9/Exiles -8/Mines -8/Materials (discovered 3 exits: *Fac x2 / Gar) -8/Garrison -8/Materials (discovered 2 exits: *Fac / Gar) -8/Garrison (discovered 3 exits: *Fac x3) -7/Factory -7/Waste -7/Factory (discovered 4 exits: *Sto x2 / Low x2) -7/Storage -7/Garrison (discovered 2 exits: *Fac x2) -6/Factory -6/Waste -6/Factory (discovered 4 exits: *Fac / [*Low x2] / Gar) -6/Garrison -6/Extension (discovered 2 exits: *Fac / *Cet) -6/Cetus (discovered 2 exits: *Fac / [*Arc]) -6/Archives (discovered 3 exits: *Fac / *Hub x2) -6/Hub_04(d) (discovered 4 exits: *Fac x4) -5/Factory -5/Garrison (discovered 3 exits: *Fac x3) -4/Factory (discovered 2 exits: *Res / [*Upp]) -4/Upper Caves -4/Upper Caves -4/Zhirov -3/Proximity Caves -3/Research (discovered 3 exits: Res / *Qua x2) -3/Quarantine -2/Research (discovered 4 exits: *Acc x2 / *Tes x2) -2/Testing (discovered 2 exits: *Acc / *Sec) -2/Section 7 -2/Garrison -1/Access To Fleet Rendezvous History --------- Turn | Location | Event 5 | -11/Scrapyard | Discovered new exit (range 15) 48 | -11/Scrapyard | Entered Materials 240 | -10/Materials | Discovered new exit (range 15) 316 | -10/Materials | Build established: Mutant 367 | -10/Materials | Lost 3 parts (2p1n) 549 | -10/Materials | Discovered new exit (range 14) 665 | -10/Materials | Discovered new exit (range 8) 988 | -10/Materials | Discovered new exit (range 16) 1469 | -10/Materials | Discovered new exit (range 14) 1510 | -10/Materials | Entered Mines 1516 | -10/Mines | Found the Drone Emporium 1528 | -10/Mines | Found Prototype Device 1528 | -10/Mines | Identified Sensor Drone Bay 1573 | -10/Mines | Learned location of Storage (-7) 1637 | -10/Mines | YI-UF0 nonchalantly dropped a Grenade Launcher on the ground 1672 | -10/Mines | Discovered new exit (range 14) 1679 | -10/Mines | Destroyed YI-UF0 1699 | -10/Mines | Found Corrupted Prototype Storage 1702 | -10/Mines | Found Corrupted Prototype Launcher 1923 | -10/Mines | Learned Materials trap positions 2021 | -10/Mines | Learned 4 Materials zone layouts 2492 | -10/Mines | Discovered new exit (range 7) 2984 | -10/Mines | Identified YI-UF0's Bottomless Matter Pit 2990 | -10/Mines | Identified YI-UF0's Doublenader 2991 | -10/Mines | System corruption reached 10% 3002 | -10/Mines | Entered Materials 3002 | -9/Materials | Evolved 2 slots: Propulsion x1, Utility x1 3003 | -9/Materials | Identified exit to Mines 3004 | -9/Materials | Loaded intel: 26 trap records 3611 | -9/Materials | Repaired Lgt. Treads 3638 | -9/Materials | Repaired Lgt. Armor Plating 3848 | -9/Materials | Discovered new exit (range 15) 4425 | -9/Materials | Discovered new exit (range 16) 4693 | -9/Materials | Entered Mines 4724 | -9/Mines | Discovered new exit (range 10) 4733 | -9/Mines | A Derelict revealed a hidden shortcut to a safe place 4792 | -9/Mines | A weapon hastily lodged in a ceiling crevice suddenly fell to the ground 4807 | -9/Mines | Deemed a non-threat by the Exiles lab entrance 4807 | -9/Mines | Discovered new exit (range 5) 4811 | -9/Mines | Entered Exiles 4836 | -9/Exiles | Met 8R-AWN 4855 | -9/Exiles | Met EX-HEX 4887 | -9/Exiles | Met EX-BIN 4946 | -9/Exiles | Aligned with FarCom system 4947 | -9/Exiles | Given EX-Vault access code 4973 | -9/Exiles | Opened EX-Vault 4982 | -9/Exiles | Found Supersonic Drone Bay 4986 | -9/Exiles | Found YOLO Cannon 5010 | -9/Exiles | Warned to stay clear of 0b10 Research branches 5040 | -9/Exiles | Met EX-DEC 5047 | -9/Exiles | Learned location of Zion (-7) 5083 | -9/Exiles | Discovered new exit (range 11) 5678 | -9/Exiles | Attacked by the Exiles 5794 | -9/Exiles | Core integrity fell below 50% 5858 | -9/Exiles | Lost 3 parts (1p1n1w) 5905 | -9/Exiles | Destroyed 8R-AWN 5916 | -9/Exiles | Found Prototype Ballistic Gun 5920 | -9/Exiles | Found Prototype Ballistic Gun 5928 | -9/Exiles | Found Prototype Processor 5934 | -9/Exiles | Lost 5 parts (2n2u1w) 6238 | -9/Exiles | Identified 8R-AWN's Boregun (x2) 6325 | -9/Exiles | Destroyed EX-HEX 6350 | -9/Exiles | Destroyed EX-BIN 6670 | -9/Exiles | Destroyed EX-DEC 6690 | -9/Exiles | Found Prototype Processor 6695 | -9/Exiles | Found Deploy-a-Sentry 7080 | -9/Exiles | Stole three prototypes: Supersonic Drone Bay, YOLO Cannon, Deploy-a-Sentry 7080 | -9/Exiles | Entered Mines 7080 | -8/Mines | Identified Exp. Core Analyzer 7081 | -8/Mines | ME-RLN came to Exiles' defense 7127 | -8/Mines | Destroyed ME-RLN 7147 | -8/Mines | Found Prototype Hackware 7153 | -8/Mines | Found Prototype Special Weapon 7155 | -8/Mines | Found Prototype Hackware 7157 | -8/Mines | Found Prototype Hackware 7189 | -8/Mines | Identified ME-RLN's Wand 7525 | -8/Mines | Discovered new exit (range 16) 7541 | -8/Mines | Entered Materials 7541 | -8/Materials | Accompanied by 1 ally 7541 | -8/Materials | Evolved 2 slots: Utility x1, Weapon x1 7876 | -8/Materials | Repaired Adv. Transmission Jammer 8070 | -8/Materials | Build established: Tank 8113 | -8/Materials | Discovered new exit (range 5) 8527 | -8/Materials | Repaired Hrd. Medium Armor Plating 8571 | -8/Materials | Discovered new exit (range 3) 9112 | -8/Materials | Build established: Scavenger-Gunner 9120 | -8/Materials | Identified exit to Garrison 9123 | -8/Materials | Entered Garrison 9178 | -8/Garrison | Triggered checkpoint 9234 | -8/Garrison | Installed Relay Interface Framework 9275 | -8/Garrison | Garrison Relay disabled 9320 | -8/Garrison | Triggered checkpoint 10062 | -8/Garrison | Triggered checkpoint 10096 | -8/Garrison | Triggered checkpoint 10156 | -8/Garrison | Triggered checkpoint 10268 | -8/Garrison | Discovered new exit (range 13) 10284 | -8/Garrison | Entered Materials 10538 | -8/Materials | Build established: Bothacker-Gunner 10812 | -8/Materials | Identified System Mapper (x2) 11037 | -8/Materials | Garrison activated, responded to threat 11084 | -8/Materials | First assault squad dispatched 11154 | -8/Materials | Discovered new exit (range 13) 11169 | -8/Materials | Identified exit to Garrison 11169 | -8/Materials | Entered Garrison 11198 | -8/Garrison | Rescued a captive Derelict 11286 | -8/Garrison | Triggered checkpoint 11488 | -8/Garrison | Triggered checkpoint 11493 | -8/Garrison | Triggered checkpoint 11526 | -8/Garrison | Destroyed 7 combat bots 11614 | -8/Garrison | Discovered new exit (range 10) 11704 | -8/Garrison | Triggered checkpoint 11737 | -8/Garrison | Build established: Bothacker-Tank 11814 | -8/Garrison | Learned Factory security intel 11830 | -8/Garrison | Garrison Relay disabled 12094 | -8/Garrison | Build established: Bothacker-Gunner 12143 | -8/Garrison | Core integrity fell below 50% 12147 | -8/Garrison | Phase Generator disabled 12152 | -8/Garrison | Discovered new exit (range 15) 12410 | -8/Garrison | Triggered checkpoint 12539 | -8/Garrison | Expanded RIF knowledge: Zone Cloak 12597 | -8/Garrison | Discovered new exit (range 14) 12734 | -8/Garrison | Triggered checkpoint 12740 | -8/Garrison | Triggered checkpoint 12750 | -8/Garrison | Garrison Relay disabled 12792 | -8/Garrison | Garrison Relay disabled 12935 | -8/Garrison | Build established: Bothacker-Mutant 13027 | -8/Garrison | Identified exit to Factory 13073 | -8/Garrison | Entered Factory 13073 | -7/Factory | Accompanied by 3 allies 13073 | -7/Factory | Evolved 2 slots: Utility x2 13073 | -7/Factory | Found Scrap Engine 13591 | -7/Factory | Repaired Hrd. Medium Armor Plating 13798 | -7/Factory | Sucked down chute 13798 | -7/Factory | Entered Waste 13809 | -7/Waste | Spotted C-40 Crusher 13813 | -7/Waste | EMP discharged 13846 | -7/Waste | Spotted C-40 Crusher 13846 | -7/Waste | Spotted C-40 Crusher 13850 | -7/Waste | 3 allies followed down the chute 13864 | -7/Waste | Spotted C-40 Crusher 13890 | -7/Waste | Destroyed C-40 Crusher 13907 | -7/Waste | Found Damper Plating 13913 | -7/Waste | EMP discharged 13913 | -7/Waste | System corruption reached 10% 13995 | -7/Waste | Spotted C-40 Crusher 14013 | -7/Waste | EMP discharged 14033 | -7/Waste | Spotted C-40 Crusher 14095 | -7/Waste | Discovered new exit (range 10) 14113 | -7/Waste | EMP discharged 14113 | -7/Waste | System corruption reached 30% 14116 | -7/Waste | Entered Factory 14582 | -7/Factory | Identified exit to Storage 14582 | -7/Factory | Identified exit to Lower Caves 14958 | -7/Factory | Entered Storage 15315 | -7/Storage | Repaired Imp. Cooling System 15771 | -7/Storage | Repaired Arm. Huge Wheel 15828 | -7/Storage | Repaired Hvy. Treads? 15843 | -7/Storage | Central database locked down 16285 | -7/Storage | Assisted by bots powering up and referring to "LRC-V3" 16397 | -7/Storage | Identified exit to Garrison 16399 | -7/Storage | Entered Garrison 16399 | -7/Garrison | Accompanied by 10 allies 16478 | -7/Garrison | Triggered checkpoint 16540 | -7/Garrison | Garrison Relay disabled 16570 | -7/Garrison | Rescued a captive Derelict 16571 | -7/Garrison | Rescued a captive Derelict 16668 | -7/Garrison | Triggered checkpoint 16668 | -7/Garrison | Triggered checkpoint 16716 | -7/Garrison | Triggered checkpoint 16804 | -7/Garrison | P-70 Sage assimilated allied Trooper 4i 16862 | -7/Garrison | Discovered new exit (range 7) 17058 | -7/Garrison | Triggered checkpoint 17217 | -7/Garrison | Triggered checkpoint 17231 | -7/Garrison | Core integrity fell below 50% 17316 | -7/Garrison | Discovered new exit (range 12) 17336 | -7/Garrison | Triggered checkpoint 17355 | -7/Garrison | Garrison Relay disabled 17489 | -7/Garrison | Expanded RIF knowledge: Threat Obfuscation 17528 | -7/Garrison | Entered Factory 17528 | -6/Factory | Evolved 2 slots: Propulsion x1, Utility x1 17540 | -6/Factory | Identified Ghost Barrier 18048 | -6/Factory | Discovered new exit (range 3) 18387 | -6/Factory | Lost 3 parts (1p1u1w) 18427 | -6/Factory | Sucked down chute 18427 | -6/Factory | Entered Waste 18442 | -6/Waste | Spotted C-40 Crusher 18640 | -6/Waste | Destroyed C-40 Crusher 18657 | -6/Waste | Spotted C-40 Crusher 18664 | -6/Waste | Build established: Hacker-Mutant 18676 | -6/Waste | Spotted C-40 Crusher 18844 | -6/Waste | Destroyed C-40 Crusher 18863 | -6/Waste | Spotted C-40 Crusher 18888 | -6/Waste | Spotted C-40 Crusher 18897 | -6/Waste | Destroyed C-40 Crusher 18975 | -6/Waste | Warlord forces began an assault 19072 | -6/Waste | Spotted C-40 Crusher 19080 | -6/Waste | Allies destroyed C-40 Crusher 19281 | -6/Waste | Build established: Hacker-Construct 19385 | -6/Waste | Discovered new exit (range 13) 19469 | -6/Waste | Entered Factory 19469 | -6/Factory | Accompanied by 16 allies 19510 | -6/Factory | Discovered new exit (range 7) 19652 | -6/Factory | Discovered new exit (range 15) 19806 | -6/Factory | Discovered new exit (range 15) 20068 | -6/Factory | Spotted B-75 Beast 20602 | -6/Factory | System corruption reached 10% 20630 | -6/Factory | Lost 3 parts (1p2u) 20713 | -6/Factory | Core integrity fell below 50% 20749 | -6/Factory | Lost 3 parts (1p1u1w) 22179 | -6/Factory | Local machine network offline 22254 | -6/Factory | Identified exit to Garrison 22254 | -6/Factory | Entered Garrison 22260 | -6/Garrison | Assembled breached garrison interior 22417 | -6/Garrison | Expanded RIF knowledge: Signal Jamming 22640 | -6/Garrison | Garrison Relay disabled 22930 | -6/Garrison | Build established: Bothacker-Construct 23106 | -6/Garrison | Garrison Relay disabled 23293 | -6/Garrison | Build established: Botlord-Construct 23340 | -6/Garrison | Expanded RIF knowledge: Hotswap 23527 | -6/Garrison | Discovered new exit (range 5) 23545 | -6/Garrison | Entered Extension 23545 | -6/Extension | Accompanied by 8 allies 23594 | -6/Extension | Rescued a captive Derelict 23649 | -6/Extension | Rescued a captive Derelict 23654 | -6/Extension | Rescued a captive Derelict 23655 | -6/Extension | Rescued a captive Derelict 24241 | -6/Extension | Build established: Commander-Construct 24303 | -6/Extension | Spotted B-75 Beast 24316 | -6/Extension | Destroyed B-75 Beast 24322 | -6/Extension | Spotted B-75 Beast 24326 | -6/Extension | Allies destroyed B-75 Beast 24370 | -6/Extension | Disrupted transfer network 24512 | -6/Extension | Rescued a captive Derelict 24514 | -6/Extension | Rescued a captive Derelict 24568 | -6/Extension | Rescued A7 24592 | -6/Extension | Rescued a captive Derelict 24613 | -6/Extension | Build established: Botlord-Construct 24666 | -6/Extension | Rescued a captive Derelict 24667 | -6/Extension | Rescued a captive Derelict 24829 | -6/Extension | Discovered new exit (range 10) 24831 | -6/Extension | Discovered new exit (range 6) 24908 | -6/Extension | Entered Cetus 24908 | -6/Cetus | Accompanied by 15 allies (A7) 24913 | -6/Cetus | Acquired a Cetus Manufacturing Module code from A7 24924 | -6/Cetus | Spotted Cetus Guard 24924 | -6/Cetus | Spotted Cetus Guard 24927 | -6/Cetus | Spotted Cetus Guard 24928 | -6/Cetus | Spotted Cetus Guard 24934 | -6/Cetus | Allies destroyed Cetus Guard 24937 | -6/Cetus | Allies destroyed Cetus Guard 24939 | -6/Cetus | Allies destroyed Cetus Guard 24939 | -6/Cetus | Allies destroyed Cetus Guard 25118 | -6/Cetus | Escorted A7 to Cetus Mainframe 25130 | -6/Cetus | Discovered new exit (range 15) 25218 | -6/Cetus | Spotted Cetus Guard 25218 | -6/Cetus | Spotted Cetus Guard 25219 | -6/Cetus | Destroyed Cetus Guard 25221 | -6/Cetus | Spotted Cetus Guard 25225 | -6/Cetus | Allies destroyed Cetus Guard 25226 | -6/Cetus | Spotted Cetus Guard 25234 | -6/Cetus | Allies destroyed Cetus Guard 25236 | -6/Cetus | Allies destroyed Cetus Guard 25243 | -6/Cetus | Discovered new exit (range 15) 25248 | -6/Cetus | Met Revision 17 25309 | -6/Cetus | Cetus Manufacturing Module disabled 25343 | -6/Cetus | Failed to start Cetus Manufacturing Module 25538 | -6/Cetus | Entered Archives 25538 | -6/Archives | Accompanied by 4 allies (A7) 25543 | -6/Archives | Received a hacking code to weaken MAIN.C 25619 | -6/Archives | Discovered new exit (range 14) 25732 | -6/Archives | Discovered new exit (range 15) 25800 | -6/Archives | Discovered new exit (range 16) 26818 | -6/Archives | Entered Hub_04(d) 26818 | -6/Hub_04(d) | Accompanied by 2 allies 26910 | -6/Hub_04(d) | Discovered new exit (range 14) 27268 | -6/Hub_04(d) | Core integrity fell below 20% 27309 | -6/Hub_04(d) | Discovered new exit (range 4) 27316 | -6/Hub_04(d) | Identified exit to Factory 27434 | -6/Hub_04(d) | Discovered exit to Factory (range 9) 27704 | -6/Hub_04(d) | Discovered exit to Factory (range 7) 27794 | -6/Hub_04(d) | Local machine network offline 28089 | -6/Hub_04(d) | Garrison activated, responded to threat 28220 | -6/Hub_04(d) | Network Hub disabled 28226 | -6/Hub_04(d) | Spotted Lightning 28226 | -6/Hub_04(d) | Spotted Lightning 28226 | -6/Hub_04(d) | Spotted Lightning 28246 | -6/Hub_04(d) | Garrison activated, responded to threat 28364 | -6/Hub_04(d) | Destroyed Lightning 28373 | -6/Hub_04(d) | Found Prototype Energy Cannon 28380 | -6/Hub_04(d) | Destroyed Lightning 28382 | -6/Hub_04(d) | Destroyed Lightning 28385 | -6/Hub_04(d) | Found Prototype Processor 28394 | -6/Hub_04(d) | Found Prototype Device 28394 | -6/Hub_04(d) | Identified Exp. Phase Shifter 28418 | -6/Hub_04(d) | Identified Exp. Targeting Computer (x2) 28438 | -6/Hub_04(d) | Found Exp. Targeting Computer 28525 | -6/Hub_04(d) | Build established: Bothacker-Construct 28568 | -6/Hub_04(d) | First assault squad dispatched 28691 | -6/Hub_04(d) | Spotted Lightning 28692 | -6/Hub_04(d) | Network Hub disabled 28692 | -6/Hub_04(d) | Spotted Lightning 28694 | -6/Hub_04(d) | Entered Factory 28694 | -5/Factory | Evolved 2 slots: Propulsion x1, Utility x1 29153 | -5/Factory | Fabricated Centrium Leg (x1) 29631 | -5/Factory | Identified exit to Garrison 29631 | -5/Factory | Entered Garrison 29672 | -5/Garrison | Triggered checkpoint 29777 | -5/Garrison | Garrison Relay disabled 29896 | -5/Garrison | Triggered checkpoint 29967 | -5/Garrison | Destroyed 8 combat bots 30010 | -5/Garrison | Triggered checkpoint 30073 | -5/Garrison | Build established: Botlord-Construct 30220 | -5/Garrison | Discovered new exit (range 13) 30252 | -5/Garrison | Identified exit to Factory 30254 | -5/Garrison | Learned Factory security intel 30263 | -5/Garrison | Garrison Relay disabled 30270 | -5/Garrison | Triggered checkpoint 30379 | -5/Garrison | Triggered checkpoint 30474 | -5/Garrison | Triggered checkpoint 30512 | -5/Garrison | Expanded RIF knowledge: Command Fork 30530 | -5/Garrison | Discovered exit to Factory (range 13) 30628 | -5/Garrison | Triggered checkpoint 30661 | -5/Garrison | Garrison Relay disabled 30870 | -5/Garrison | Expanded RIF knowledge: Autoassimilate 30879 | -5/Garrison | Discovered exit to Factory (range 4) 30892 | -5/Garrison | Triggered checkpoint 30923 | -5/Garrison | Found embedded Infiltrators 30923 | -5/Garrison | Garrison Relay disabled 30982 | -5/Garrison | Entered Factory 30982 | -4/Factory | Accompanied by 5 allies 30982 | -4/Factory | Evolved 2 slots: Power x1, Utility x1 31232 | -4/Factory | First assault squad dispatched 31255 | -4/Factory | Discovered new exit (range 15) 31373 | -4/Factory | Discovered new exit (range 9) 31452 | -4/Factory | Destroyed 10 combat bots 31600 | -4/Factory | Cargo convoy interrupted 31619 | -4/Factory | System corruption reached 10% 31665 | -4/Factory | Lost 7 parts (2p1n2u2w) 31685 | -4/Factory | Found Prototype Device 31685 | -4/Factory | Identified Exp. Focal Shield 31693 | -4/Factory | Found Prototype Processor 31724 | -4/Factory | Found Exp. Focal Shield 31778 | -4/Factory | Entered Upper Caves 31778 | -4/Upper Caves | Spotted Z2-UZZ(f) 31779 | -4/Upper Caves | Encountered a Master Thief 31779 | -4/Upper Caves | Deploy-a-Sentry stolen by Master Thief 31779 | -4/Upper Caves | Identified EMDS 31933 | -4/Upper Caves | Build established: Botlord-Mutant 32205 | -4/Upper Caves | Learned 12 Research zone layouts 32316 | -4/Upper Caves | Destroyed B-86 Titan 32474 | -4/Upper Caves | Identified Spectral Analyzer 32611 | -4/Upper Caves | Found Alien Artifact 32611 | -4/Upper Caves | Identified Core Expander 32611 | -4/Upper Caves | Installed Core Expander, added new Weapon slot 32934 | -4/Upper Caves | Discovered new exit (range 16) 33023 | -4/Upper Caves | Identified exit to Upper Caves 33095 | -4/Upper Caves | Entered another Upper Caves area 33649 | -4/Upper Caves | Discovered new exit (range 10) 33665 | -4/Upper Caves | Entered Zhirov 33665 | -4/Zhirov | Discovered new exit (range 3) 33698 | -4/Zhirov | Met Zhirov 33730 | -4/Zhirov | Learned location of Quarantine (-3) 33730 | -4/Zhirov | Learned location of Testing (-2) 33730 | -4/Zhirov | Learned location of Command (-1) 33748 | -4/Zhirov | Zhirov requested help retrieving the SGEMP Prototype 33776 | -4/Zhirov | Found Alien Artifact 33776 | -4/Zhirov | Identified Integrated Reactor 33776 | -4/Zhirov | Installed Integrated Reactor, increased core energy generation (+10) 33961 | -4/Zhirov | Found Alien Artifact 34005 | -4/Zhirov | Entered Proximity Caves 34722 | -3/Proximity Caves | Spotted B-86 Titan 34741 | -3/Proximity Caves | Discovered new exit (range 10) 34746 | -3/Proximity Caves | Attracted the attention of an 0b10 outpost 34759 | -3/Proximity Caves | Identified exit to Research 34761 | -3/Proximity Caves | Entered Research 34761 | -3/Research | Accompanied by 1 ally 34761 | -3/Research | Evolved 2 slots: Utility x2 34762 | -3/Research | Identified exit to Research 34925 | -3/Research | Build established: Botlord-Construct 35598 | -3/Research | Identified exit to Quarantine 36513 | -3/Research | Repaired Exp. Utility Shielding 36548 | -3/Research | P-80 Master assimilated allied Warden 8c 36573 | -3/Research | System corruption reached 10% 36839 | -3/Research | Fabricated Hyb. Fission Core (x2) 36998 | -3/Research | Found Unknown Launcher 37087 | -3/Research | Identified Gamma Bomb Array 37335 | -3/Research | Found Prototype Protection 37335 | -3/Research | Identified Centrium Heavy Armor Plating 37609 | -3/Research | Entered Quarantine 37609 | -3/Quarantine | Accompanied by 1 ally 37729 | -3/Quarantine | Destroyed 8 combat bots 37821 | -3/Quarantine | Found Prototype Device 37821 | -3/Quarantine | Identified Exp. Thermal Shield 37827 | -3/Quarantine | Found Exp. Thermal Shield 37859 | -3/Quarantine | First assault squad dispatched 38025 | -3/Quarantine | Destroyed 7 combat bots 38068 | -3/Quarantine | Spotted Alpha 7 38151 | -3/Quarantine | Found Alien Artifact 38153 | -3/Quarantine | Found Alien Artifact 38354 | -3/Quarantine | Found Alien Artifact 38359 | -3/Quarantine | Found Alien Artifact 38359 | -3/Quarantine | Identified Hpw. Transdimensional Reconstructor 38359 | -3/Quarantine | Warped through subspace 38425 | -3/Quarantine | Found Alien Artifact 38574 | -3/Quarantine | Identified Terrabomb 38574 | -3/Quarantine | Identified Dimensional Node Initializer (x3) 38574 | -3/Quarantine | Identified Transdimensional Reconstructor 38827 | -3/Quarantine | Found Hpw. Transdimensional Reconstructor 38829 | -3/Quarantine | Found Hpw. Transdimensional Reconstructor 38831 | -3/Quarantine | Build established: Construct 39267 | -3/Quarantine | Found Alien Artifact 39283 | -3/Quarantine | Discovered exit to Research (range 19) 39421 | -3/Quarantine | Initialized slip node 39498 | -3/Quarantine | Entered Research 39498 | -2/Research | Evolved 2 slots: Utility x2 39761 | -2/Research | Build established: Mutant 39890 | -2/Research | Spotted B-90 Cyclops 40160 | -2/Research | Identified exit to Testing 40265 | -2/Research | P-80 Master assimilated allied Administrator 9a 40293 | -2/Research | Found Hellfire Missile Launcher 40412 | -2/Research | Repaired Centrium Heavy Armor Plating 40544 | -2/Research | System corruption reached 10% 40637 | -2/Research | Discovered new exit (range 24) 40701 | -2/Research | Fabricated Huge Storage Unit (x1) 41809 | -2/Research | Discovered new exit (range 5) 41877 | -2/Research | Found Prototype Launcher 41877 | -2/Research | Identified Com. Tesla Bomb Launcher 42052 | -2/Research | Found Exp. ECM Suite 42136 | -2/Research | Entered Testing 42156 | -2/Testing | Found Prototype Device 42156 | -2/Testing | Identified Adv. EM Disruption Field 42164 | -2/Testing | Found Adv. EM Disruption Field 42245 | -2/Testing | Spotted PG-K3EL1OG3JJ 42354 | -2/Testing | Spotted PY-H0KRLBDC3Z 42361 | -2/Testing | Rewired PY-H0KRLBDC3Z 42644 | -2/Testing | Discovered new exit (range 22) 42682 | -2/Testing | Found Prototype Energy Cannon 42682 | -2/Testing | Identified Imp. Potential Cannon 42687 | -2/Testing | Found Prototype Energy Cannon 42687 | -2/Testing | Identified Potential Cannon 42928 | -2/Testing | Protovariant out of control (PG-K3EL1OG3JJ) 42928 | -2/Testing | Unleashed a protovariant (PG-K3EL1OG3JJ) 43127 | -2/Testing | Lost 3 parts (1p1u1w) 43470 | -2/Testing | Found Prototype Ballistic Gun 43470 | -2/Testing | Identified Hyp. Multirail 43573 | -2/Testing | Initialized slip node 43791 | -2/Testing | System corruption reached 30% 43860 | -2/Testing | Found System Mapper 43929 | -2/Testing | Found Ghost Barrier 44209 | -2/Testing | Repaired Exp. Utility Shielding 44246 | -2/Testing | Repaired Exp. Coolant Injector 44475 | -2/Testing | Spotted Striker 44480 | -2/Testing | Spotted Striker 44493 | -2/Testing | Build established: Hacker-Mutant 44841 | -2/Testing | Found Prototype Energy Cannon 44841 | -2/Testing | Identified Null Cannon 44886 | -2/Testing | First assault squad dispatched 44955 | -2/Testing | Warped through subspace to slip node 45036 | -2/Testing | Spotted Fortress 45246 | -2/Testing | Discovered new exit (range 6) 45257 | -2/Testing | Entered Section 7 45314 | -2/Section 7 | Found Alien Artifact 45314 | -2/Section 7 | Identified Core Reset Matrix 45314 | -2/Section 7 | Identified Subatomic Replicator 45314 | -2/Section 7 | Used Core Reset Matrix 45318 | -2/Section 7 | Sensed 20 artifacts in vicinity 45412 | -2/Section 7 | Initialized slip node 45422 | -2/Section 7 | Spotted S7 Guard 45483 | -2/Section 7 | Found Integrated Thermoelectric Network 45483 | -2/Section 7 | Installed Integrated Thermoelectric Network, gained heat-energy exchange potential 45490 | -2/Section 7 | Warped through subspace to slip node 45683 | -2/Section 7 | Found Microwarp Drive 45754 | -2/Section 7 | Lost 3 parts (2p1u) 45806 | -2/Section 7 | Destroyed 10 combat bots 46112 | -2/Section 7 | Repaired Exp. Thermal Shield 46298 | -2/Section 7 | Core integrity fell below 50% 46338 | -2/Section 7 | Spotted S7 Guard 46380 | -2/Section 7 | Spotted Alpha 7 46382 | -2/Section 7 | Spotted Alpha 7 46384 | -2/Section 7 | Spotted B-99 Colossus 46433 | -2/Section 7 | Found Integrated Reactor 46433 | -2/Section 7 | Installed Integrated Reactor, increased core energy generation (+10) 46436 | -2/Section 7 | Found Integrated Reactor 46436 | -2/Section 7 | Installed Integrated Reactor, increased core energy generation (+10) 46440 | -2/Section 7 | Found Integrated Reactor 46440 | -2/Section 7 | Installed Integrated Reactor, increased core energy generation (+10) 46461 | -2/Section 7 | Found LRC Boosters 46461 | -2/Section 7 | Installed LRC Boosters, increased mass support (+10) 46464 | -2/Section 7 | Found LRC Energy Well 46464 | -2/Section 7 | Installed LRC Energy Well, increased energy storage capacity (+250) 46527 | -2/Section 7 | Core integrity fell below 20% 46532 | -2/Section 7 | First assault squad dispatched 46576 | -2/Section 7 | Destroyed S7 Guard 46680 | -2/Section 7 | Scanned by Researcher 46683 | -2/Section 7 | Found Integrity Redistributor 46683 | -2/Section 7 | Used Integrity Redistributor, redistributed integrity to core (+272) 46684 | -2/Section 7 | Warped through subspace to slip node 46685 | -2/Section 7 | Identified exit to Garrison 46685 | -2/Section 7 | Entered Garrison 46734 | -2/Garrison | Build established: Alien-Mutant 46745 | -2/Garrison | Spotted B-86 Titan 46751 | -2/Garrison | Rewired B-75 Beast 47001 | -2/Garrison | Spotted B-90 Cyclops 47047 | -2/Garrison | Triggered checkpoint 47060 | -2/Garrison | Triggered checkpoint 47089 | -2/Garrison | Triggered checkpoint 47115 | -2/Garrison | Destroyed B-90 Cyclops 47129 | -2/Garrison | Triggered checkpoint 47166 | -2/Garrison | Destroyed 7 combat bots 47276 | -2/Garrison | Discovered new exit (range 8) 47326 | -2/Garrison | Entered Access 47326 | -1/Access | Evolved 2 slots: Utility x2 47588 | -1/Access | Found Exp. Thermal Shield 47596 | -1/Access | Found Exp. Thermal Shield 47778 | -1/Access | Intercept squad dispatched 47792 | -1/Access | Identified exit to Surface 47806 | -1/Access | Spotted Tracker 47806 | -1/Access | Spotted Tracker 47824 | -1/Access | Spotted Combat Programmer 47828 | -1/Access | Spotted Combat Programmer 47858 | -1/Access | System corruption reached 10% 47875 | -1/Access | Destroyed Combat Programmer 47942 | -1/Access | Energy Cycler disabled 47942 | -1/Access | Destroyed Combat Programmer 47976 | -1/Access | Lost 19 parts (2p2n9u6w) 48098 | -1/Access | Core integrity fell below 50% 48126 | -1/Access | First assault squad dispatched 48173 | -1/Access | Lost 4 parts (2p1u1w) 48222 | -1/Access | Emitted hypermatrix ping 48227 | -1/Access | Assembled emerged from beneath the floor 48227 | *** | Heading to fleet! Last Messages --------------- 48181_ K-01 Serf collects debris. 48183_ The unstable cave ceiling collapses. 48189_ K-01 Serf collects debris. 48193_ System corrupted: Energy discharge (-528). 48194_ K-01 Serf collects debris. 48194_ System corrupted: Biometal Leg stumbles. 48199_ K-01 Serf collects debris. 48207_ Kicked W-44 Eye out of the way. 48209_ System corrupted: Energy discharge (-542). 48217_ C-30 ARC bursts open, deploying its payload. 48217_ G-73 Enforcer unfolds itself. 48217_ E-15 Imp unfolds itself. 48218_ Microwarped (distance 10). 48219_ Microwarped (distance 18). 48220_ Microwarped (distance 37). 48221_ The Access Shell folds into the floor. 48221_ Microwarped (distance 9). 48222_ Emitted hypermatrix ping. 48225_ K-01 Serf cleans the Terminal. 48227_ Assembled emerge from beneath the floor. Map ----- +----------------------------------------------------+ | ?????????????????????????????????????????????????? | | ?????????????????????????????????????????????????? | | ?????????????????????????????????????????????????? | | ?????????????????????????????????????????????????? | | ?????????????????????????????????????????????????? | | ?????????????????????????????????????????????????? | | ?????????????????????????????????????????????????? | | ?????????????????????????????????????????????????? | | ?????????????????????????????????????????????????? | | ?????????????????????????????????????????????????? | | #+###????????????####################### #????? | | #????? | | t k #????? | | #+################### ""####### #????? | | ????????????????????# ""#??????????? #????? | | ????????????????????# ""#?????????????????? | | ????????????????????# T#?????????????????? | | ????????????????????# ""#?????????????????? | | ????????????????????# ""#?????????????????? | | ???????????????????## a ""##????????????????? | | ???????????????????# a #????????????????? | | ???????????????????##a ##????????????????? | | ????????????????????# aaa #?????????????????? | | ????????????????????# a #?????????????????? | | ????????????????????# #?????????????????? | | ????????????????????# @" #?????????????????? | | ????????????????????# "" #?????????????????? | | ????????????????????# #?????????????????? | | ????????????????????# #?????????????????? | | ????????????????????# #?????????????????? | | ????????????????????#""""""""""#?????????????????? | | ?????????????????????????????????????????????????? | | ?????????????????????????????????????????????????? | | ?????????????????????????????????????????????????? | | ?????????????????????????????????????????????????? | | ?????????????????????????????????????????????????? | | ?????????????????????????????????????????????????? | | ?????????????????????????????????????????????????? | | ?????????????????????????????????????????????????? | | ?????????????????????????????????????????????????? | | ?????????????????????????????????????????????????? | | ?????????????????????????????????????????????????? | | ?????????????????????????????????????????????????? | | ?????????????????????????????????????????????????? | | ?????????????????????????????????????????????????? | | ?????????????????????????????????????????????????? | | ?????????????????????????????????????????????????? | | ?????????????????????????????????????????????????? | | ?????????????????????????????????????????????????? | | ?????????????????????????????????????????????????? | +----------------------------------------------------+ Best States ------------- Heat Dissipation 69 Coolant Potential 240 Energy Generation 85 Energy Capacity 1786 Matter Stores 1261 Matter Capacity 1800 Sight Range 24 Terrain Scan Density 10 Jamming Range 16 EM Shielding 2 Armor Coverage 1600 Resistance: KI 30 Resistance: TH 30 Resistance: EM 90 Core Shielding 20 Utility Shielding 90 Phase Shifting 20 Evasion (%) 75 Targeting Accuracy 28 Melee Accuracy 8 Core Analysis 8 Recoil Reduction 5 Offensive Hacking 20 Defensive Hacking 20 Relay Coupler Types 3 Relay Coupler Value 73 Item Schematics ----------------- None Robot Schematics ------------------ None Fabricated ------------ Centrium Leg | x1 | -5/Factory | Preloaded Hyb. Fission Core | x2 | -3/Research Huge Storage Unit | x1 | -2/Research Alien Tech Used ----------------- Core Expander Integrated Reactor High-powered Transdimensional Reconstructor Dimensional Node Initializer Core Reset Matrix Integrated Thermoelectric Network Transdimensional Reconstructor Microwarp Drive LRC Boosters LRC Energy Well Integrity Redistributor Achievements -------------- None Challenges ------------ None Game ------ Seed AluminumSigixProtection Manual? 0 Play Time 12:43:15 Cumulative 621.8 hours Start 2022.11.23 @ 17:17:52 End 2022.12.17 @ 10:33:09 Sessions 13 Manual Loads 0 Difficulty Rogue Special Mode None Game No. 198 Rogue 194 Adventurer 4 Explorer 0 Win Type 2 Total 17 Types 7/2/6/0/0/0/1/1/0 Lore% 86 Gallery% 88 Achievement% 77 Wizard Run 0 Options --------- ASCII 1 Keyboard 0 Movement Arrows Keybinds 0 Fullscreen 1 Font 18/SmallcapsGlow Map View 76x50 Tactical HUD 1 Map Filters NONE Filters NONE Steam 1 RUN: 2a77660d-6400-46a3-9727-7642b76b2ea3